Cogmind - Beta 15 @@@ ROGUE MODE // 2025.08.12 @ 09:55:44 Player: McSaucyNugget Result: Establishing 0b11! Performance ------------- Evolutions (9) 4500 Regions Visited (34) 6800 Robots Destroyed (228) 1140 Value Destroyed (7623) 7623 Prototype IDs (364) 7280 Alien Tech Used (3) 600 Bonus (34349) 34349 TOTAL SCORE: 62292 Bonus ------- High Alert Combat Kills 181 Follower Combat Kills 1759 Network Hubs Disabled 400 Met Data Miner 300 Met Imprinter 300 Met Warlord at Base 500 MAIN.C Attacked Warlord 500 Found Hidden Lab 3000 Met Warlord at Research 2000 Destroyed MAIN.C Guards 500 Met MAIN.C 5000 Destroyed MAIN.C Shell 5000 Destroyed MAIN.C 10000 Met Warlord at Command 2000 Win 3000 Friendly Fire -91 Cogmind --------- Core Integrity 1369/1600 Matter 290/300 Energy 572/580 System Corruption 7% Temperature Cool (20) Movement Hovering (41) Location 0b11 Command Parts ------- > --- POWER (3) -------- Particle Reactor Particle Reactor > --- PROPULSION (8) --- Combat Antigrav System Combat Linear Gravjet Combat Linear Gravjet Combat Linear Gravjet Combat Linear Gravjet Combat Linear Gravjet Combat Linear Gravjet (fused) Combat Linear Gravjet > --- UTILITY (12) ----- Advanced Cooling System Medium Storage Unit Improved Melee Analysis Suite Improved Melee Analysis Suite Improved Melee Analysis Suite Improved Melee Analysis Suite Experimental Melee Analysis Suite Experimental Core Analyzer Light Regenerative Plating > --- WEAPON (3) ------- Warp Cannon Nanosword Lance > --- INVENTORY (10) --- Light Particle Reactor Micro Antimatter Reactor Combat Antigrav System Impulse Thruster Array Hacking Suite Advanced Micro-nuke Launcher Molecular Scythe Peak State ------------ > --- POWER ------------ Micro Antimatter Reactor Light Quantum Reactor Light Quantum Reactor > --- PROPULSION ------- Combat Antigrav System Combat Linear Gravjet Combat Linear Gravjet Combat Linear Gravjet Combat Linear Gravjet Combat Linear Gravjet Combat Linear Gravjet Combat Linear Gravjet > --- UTILITY ---------- Experimental Power Amplifier Advanced Cooling System Medium Storage Unit Advanced Visual Processing Unit Experimental Melee Analysis Suite Experimental Core Analyzer Improved Medium Armor Plating Improved Medium Armor Plating Light Regenerative Plating System Mapper System Shield Ghost Barrier > --- WEAPON ----------- Warp Cannon Molecular Scythe Nanosword > --- INVENTORY -------- Light Antimatter Reactor Micro Antimatter Reactor Combat Antigrav System Impulse Thruster Array Hacking Suite Enhanced Nova Cannon Advanced Micro-nuke Launcher Lance [Rating: 202] Favorites ----------- Power Micro Antimatter Reactor Engine Cooled Ion Engine Power Core Micro Fission Core Reactor Micro Antimatter Reactor Propulsion Light Treads Treads Light Treads Leg Carbon-fiber Leg Wheel Compact Wheel Hover Unit Combat Linear Gravjet Flight Unit Cooled VTOL Module Utility Improved Hacking Suite Device Shield Generator Storage Huge Storage Unit Processor Machine Analyzer Hackware Improved Hacking Suite Protection Experimental Utility Shielding Weapon Phasing Sabre Energy Gun EM Pulse Gun Energy Cannon Advanced Beam Cannon Ballistic Gun Heavy Assault Rifle Ballistic Cannon Slug Cannon Launcher Rocket Launcher Special Weapon Mining Laser Impact Weapon Thunder Hammer Slashing Weapon Phasing Sabre Piercing Weapon Lance Build | -11 -10 -10 -9 -9 -9 -8 -8 -7 -7 -7 -7 -6 -6 -6 -6 -6 -5 -5 -5 -5 -5 -5 -4 -4 -4 -4 -3 -3 -3 -3 -2 -2 -1 -1 ------- Run | Yrd Mat Min Mat Min Exi Min Mat Fac Low Low Dat Pro Fac Low Low Zio Pro Fac Ext Cet Arc Hub Fac Upp Upp War Pro Res Arm Lab Res Tes Acc Com Slots Evolved 18 | . . . 2 . . . 2 2 . . . . 2 . . . . 2 . . . . 2 . . . . 2 . . 2 . 2 . Power 1 | . . . . . . . . . . . . . . . . . . . . . . . . . . . . 1 . . . . . . Propulsion 6 | . . . 1 . . . 1 . . . . . . . . . . . . . . . 2 . . . . . . . 1 . 1 . Utility 10 | . . . 1 . . . 1 2 . . . . 2 . . . . 2 . . . . . . . . . 1 . . 1 . . . Weapon 1 | . . . . . . . . . . . . . . . . . . . . . . . . . . . . . . . . . 1 . Parts Attached 254 | 7 7 2 21 2 . 4 17 27 1 . . . 9 . 2 9 . 12 19 7 11 4 15 1 . 6 2 6 7 5 9 9 3 30 Power 31 | 1 1 . 3 . . . 3 1 . . . . 1 . . 1 . 1 3 1 . 1 1 . . . 1 1 1 . 1 2 1 6 Engine 9 | 1 1 . 3 . . . 1 1 . . . . . . . 1 . . . . . . . . . . . 1 . . . . . . Core 8 | . . . . . . . 2 . . . . . 1 . . . . 1 3 . . 1 . . . . . . . . . . . . Reactor 14 | . . . . . . . . . . . . . . . . . . . . 1 . . 1 . . . 1 . 1 . 1 2 1 6 Propulsion 68 | 2 2 1 5 . . 1 7 7 . . . . 3 . . . . 5 7 1 2 1 9 . . 1 . . 3 . 1 . . 10 Treads 19 | 2 . . 5 . . 1 7 2 . . . . . . . . . . . . . . 2 . . . . . . . . . . . Leg 4 | . . . . . . . . . . . . . . . . . . . 3 . 1 . . . . . . . . . . . . . Wheel 10 | . 2 1 . . . . . 2 . . . . . . . . . . 4 1 . . . . . . . . . . . . . . Hover 16 | . . . . . . . . . . . . . . . . . . 2 . . 1 1 3 . . . . . . . . . . 9 Flight 19 | . . . . . . . . 3 . . . . 3 . . . . 3 . . . . 4 . . 1 . . 3 . 1 . . 1 Utility 102 | 1 3 . 7 1 . . 4 11 1 . . . 5 . . 7 . 3 3 2 8 2 4 . . 5 1 4 2 2 6 5 1 14 Device 34 | . 1 . 4 1 . . 1 4 . . . . 2 . . . . . 1 1 2 1 3 . . 1 . 2 . 1 3 . 1 5 Storage 5 | 1 1 . 1 . . . . . . . . . . . . . . . 1 . . . . . . . . 1 . . . . . . Processor 20 | . . . . . . . . 3 . . . . . . . 5 . . . . . 1 . . . 2 . 1 2 . . . . 6 Hackware 23 | . . . . . . . . 3 1 . . . 1 . . 2 . 3 . . 5 . 1 . . 1 . . . 1 2 2 . 1 Protection 20 | . 1 . 2 . . . 3 1 . . . . 2 . . . . . 1 1 1 . . . . 1 1 . . . 1 3 . 2 Artifact . | . . . . . . . . . . . . . . . . . . . . . . . . . . . . . . . . . . . Weapon 53 | 3 1 1 6 1 . 3 3 8 . . . . . . 2 1 . 3 6 3 1 . 1 1 . . . 1 1 3 1 2 1 . Energy Gun 7 | 2 . . 1 . . . . 1 . . . . . . . . . . . 2 . . . . . . . . . 1 . . . . Energy Cannon 11 | . . . 2 . . . 2 3 . . . . . . . . . 1 . . . . . 1 . . . . . 1 1 . . . Ballistic Gun 11 | 1 1 . 1 . . 2 . 1 . . . . . . . . . . 1 1 1 . 1 . . . . . . 1 . . . . Ballistic Cannon 5 | . . . . 1 . . . 1 . . . . . . . . . . 3 . . . . . . . . . . . . . . . Launcher 7 | . . . 2 . . 1 1 . . . . . . . 1 . . . 1 . . . . . . . . . 1 . . . . . Special Weapon 2 | . . 1 . . . . . . . . . . . . . . . 1 . . . . . . . . . . . . . . . . Impact Weapon 1 | . . . . . . . . . . . . . . . . . . 1 . . . . . . . . . . . . . . . . Slashing Weapon 7 | . . . . . . . . 2 . . . . . . 1 . . . 1 . . . . . . . . 1 . . . 1 1 . Piercing Weapon 2 | . . . . . . . . . . . . . . . . 1 . . . . . . . . . . . . . . . 1 . . Special Melee Weapon . | . . . . . . . . . . . . . . . . . . . . . . . . . . . . . . . . . . . Unidentified Prototypes 26 | . . . 2 1 . 1 . 1 . . . . 2 . . . . 1 1 3 . . . . . 4 . . 1 7 . 1 . 1 Parts Lost 58 | . 1 2 1 . . . 2 6 . . . . 1 1 . . 1 3 5 2 2 6 1 . . . 2 1 6 . . 1 1 13 Power 7 | . . . . . . . . 1 . . . . . . . . . . 1 . . 1 . . . . 1 . . . . 1 . 2 Propulsion 22 | . . 1 1 . . . 1 3 . . . . . 1 . . 1 3 1 1 2 4 1 . . . . . 1 . . . . 1 Utility 23 | . . . . . . . 1 2 . . . . 1 . . . . . 1 . . . . . . . 1 1 5 . . . 1 10 Weapon 6 | . 1 1 . . . . . . . . . . . . . . . . 2 1 . 1 . . . . . . . . . . . . Highest Loss Streak 6 | . 1 2 1 . . . 1 5 . . . . 1 1 . . 1 1 4 2 2 6 1 . . . 2 1 5 . . 1 1 5 To Critical Strikes 1 | . . . . . . . . . . . . . . . . . . . . 1 . . . . . . . . . . . . . . Average Backups 13 | 1 6 15 20 24 24 24 24 21 4 4 4 4 4 4 4 5 5 4 16 23 8 4 4 5 5 4 5 5 7 6 8 8 7 8 Power 1 | . 1 2 1 1 2 2 1 . . . . . . 1 1 1 1 1 2 3 . . . 1 1 1 1 . 1 2 1 1 . 1 Propulsion 2 | . 3 2 3 4 4 4 4 5 . . . . . 1 . . . . 5 6 1 . . 2 2 1 1 1 2 2 2 2 1 2 Utility 4 | . . 6 6 8 7 7 9 8 2 2 2 2 3 1 1 2 3 1 3 7 3 3 3 2 2 2 3 1 1 . 1 2 3 1 Weapon 4 | . 1 3 8 11 11 11 9 7 2 2 2 2 1 1 1 1 1 1 5 5 1 . . . . . . 2 2 2 3 3 3 3 Tool/Special . | . . . . . . . . . . . . . . . . . . . . . . . . . . . . . . . . . . . Unused Backups 66 | . 1 2 7 . . 1 6 8 . . . . 3 . 1 1 . 1 1 4 9 . 1 . . 1 . . 6 . 2 4 . 7 Power 14 | . . . 3 . . . 1 . . . . . . . 1 . . . 1 2 2 . . . . . . . 1 . 1 . . 2 Propulsion 15 | . 1 . 1 . . . . 1 . . . . . . . . . 1 . . 3 . . . . . . . 3 . . 1 . 4 Utility 17 | . . 1 2 . . . 1 2 . . . . 2 . . 1 . . . . 2 . 1 . . 1 . . . . . 3 . 1 Weapon 18 | . . 1 1 . . 1 4 5 . . . . . . . . . . . 2 2 . . . . . . . 2 . . . . . Tool/Special 2 | . . . . . . . . . . . . . 1 . . . . . . . . . . . . . . . . . 1 . . . Average Slot Usage (%) 92 | . 97 99 97 100 100 100 97 89 84 84 84 84 91 93 91 98 96 97 92 98 83 91 85 89 89 89 89 82 81 75 73 85 84 88 Engine 4 | . 13 14 11 11 11 11 7 1 7 7 7 7 3 . . 3 6 . . . . . . . . . . . 2 . . . . . Core 1 | . . . . . . . 1 5 . . . . 2 6 6 3 . 4 5 2 3 5 2 . . . . . . . . . . . Reactor 2 | . . . . . . . . . . . . . . . . . . . . 2 1 . 3 5 5 5 5 4 6 9 9 11 10 9 Treads 12 | . 23 . 25 33 33 33 35 22 . . . . . . . . . . . . . . 3 . . . . . . . . . . . Wheel 2 | . 3 27 5 . . . . 2 . . . . . . . . . . 8 10 1 . . . . . . . . . . . . . Hover 1 | . . . . . . . . . . . . . . . . . . . . . 1 3 2 . . . . . . . . . . 16 Flight 8 | . . . . . . . . 3 23 23 23 23 25 26 26 26 22 20 4 . 13 15 11 21 21 21 21 19 18 18 16 16 18 8 Device 10 | . 13 . 10 20 22 22 18 13 7 7 7 7 6 6 6 6 6 5 2 5 6 5 8 5 5 2 5 4 6 9 9 11 9 6 Storage 5 | . 14 14 11 11 11 11 9 6 . . . . . . . . . . 3 5 . . . . . . . 2 4 4 4 4 3 3 Processor 6 | . . . . . . . . 2 15 15 15 15 13 13 13 17 20 17 8 5 5 10 10 10 10 13 15 10 9 13 12 10 7 12 Hackware 11 | . . . . . . . . 8 23 23 23 23 25 20 20 20 20 28 29 25 25 29 26 26 26 26 26 23 20 10 13 16 15 9 Protection 6 | . . 14 11 1 . . 7 5 . . . . 5 13 11 8 6 5 11 14 12 10 6 10 10 9 5 8 6 . 2 6 7 8 Energy Cannon 4 | . . . 10 12 11 11 9 7 . . . . . . . . . . 2 1 . . . . 5 5 5 1 . . . . . . Ballistic Gun 3 | . 15 21 11 . . 9 . 1 . . . . . . . . . . 1 3 1 . 4 4 . . . . . 2 . . . . Ballistic Cannon 1 | . . . . 4 11 1 8 3 . . . . . . . . . . 1 . . . . . . . . . . . . . . . Slashing Weapon 2 | . . . . . . . . 1 7 7 7 7 6 6 6 6 6 5 1 . 1 5 4 5 5 5 5 4 3 3 4 3 4 6 Peak Build Rating 202 | 6 9 9 21 29 25 25 31 43 34 34 34 35 59 59 64 66 65 82 83 98 98 88 116 114 113 121 119 128 138 129 169 177 186 202 Average Rating 70 | 4 6 8 16 26 25 23 28 39 33 34 34 34 51 58 59 64 62 75 71 91 75 79 105 113 113 118 118 123 127 123 142 170 179 184 On Entrance 70 | . 6 9 9 21 25 25 23 29 33 34 34 34 35 59 51 61 65 60 75 79 98 83 63 114 113 113 119 118 124 117 129 161 162 174 Naked Turns . | . . . . . . . . . . . . . . . . . . . . . . . . . . . . . . . . . . . Heaviest Build 125 | 14 55 55 104 104 102 102 114 123 13 13 13 13 20 20 20 22 12 22 118 124 125 17 28 31 31 31 24 41 47 44 45 57 54 110 Greatest Support 114 | 40 40 26 63 63 63 63 86 84 14 14 14 14 22 21 22 22 22 27 48 48 32 21 46 40 40 40 42 42 46 42 53 55 58 114 Greatest Overweight (x) 9 | . 2 5 3 1 1 1 1 7 . . . . . . . . . . 9 6 4 . 2 . . . . 1 1 1 . 1 1 3 Average Overweight (x) . | . . 2 1 1 1 1 1 . . . . . . . . . . . 1 3 . . . . . . . . . . . . . . Largest Inventory Capacity 25 | 8 20 20 25 25 25 25 25 25 5 5 5 5 5 5 5 5 5 5 25 25 25 5 5 5 5 5 5 10 10 10 10 10 10 10 Average Capacity 15 | 7 9 20 21 25 25 25 25 22 5 5 5 5 5 5 5 5 5 5 20 25 8 5 5 5 5 5 5 8 10 10 10 10 10 10 Most Carried 25 | 4 15 16 25 25 24 25 25 25 4 4 4 5 5 5 5 5 5 5 25 25 25 5 5 5 5 5 5 9 10 10 10 10 10 10 Average Carried 14 | 1 6 15 20 24 24 24 24 21 4 4 4 4 4 4 4 4 5 4 16 23 7 4 4 5 5 4 4 5 9 8 9 9 8 9 Final Capacity 25 | 8 20 20 25 25 25 25 25 5 5 5 5 5 5 5 5 5 5 5 25 25 5 5 5 5 5 5 5 10 10 10 10 10 10 10 Final Carried 25 | 4 15 13 25 24 24 25 25 4 4 4 4 5 4 5 5 5 5 5 25 24 4 3 5 5 5 5 3 9 9 10 10 10 10 8 Class Distribution -------------------- 28% | Mutant 20% | Hacker-Sprinter 17% | Scavenger-Mutant 11% | Wizard-Sprinter 10% | Wizard-Scout 6% | Hacker-Mutant 3% | Hacker-Gladiator Dominant Class ---------------- Mutant | -10/Materials Mutant | -10/Mines Scavenger-Mutant | -9/Materials Mutant | -9/Mines Mutant | -9/Exiles Scavenger-Mutant | -8/Mines Scavenger-Mutant | -8/Materials Mutant | -7/Factory Hacker-Sprinter | -7/Lower Caves Hacker-Sprinter | -7/Lower Caves Hacker-Sprinter | -7/Data Miner Hacker-Sprinter | -6/Proximity Caves Hacker-Sprinter | -6/Factory Hacker-Sprinter | -6/Lower Caves Hacker-Sprinter | -6/Lower Caves Hacker-Sprinter | -6/Zion Hacker-Sprinter | -5/Proximity Caves Hacker-Sprinter | -5/Factory Hacker-Mutant | -5/Extension Hacker-Mutant | -5/Cetus Hacker-Sprinter | -5/Archives Wizard-Scout | -5/Hub_04(d) Wizard-Scout | -4/Factory Wizard-Scout | -4/Upper Caves Wizard-Scout | -4/Upper Caves Wizard-Sprinter | -4/Warlord Wizard-Scout | -3/Proximity Caves Wizard-Sprinter | -3/Research Wizard-Sprinter | -3/Armory Hacker-Sprinter | -3/Lab Hacker-Sprinter | -2/Research Wizard-Sprinter | -2/Testing Wizard-Sprinter | -1/Access Hacker-Gladiator | -1/Command Resources | -11 -10 -10 -9 -9 -9 -8 -8 -7 -7 -7 -7 -6 -6 -6 -6 -6 -5 -5 -5 -5 -5 -5 -4 -4 -4 -4 -3 -3 -3 -3 -2 -2 -1 -1 ----------- Run | Yrd Mat Min Mat Min Exi Min Mat Fac Low Low Dat Pro Fac Low Low Zio Pro Fac Ext Cet Arc Hub Fac Upp Upp War Pro Res Arm Lab Res Tes Acc Com Matter Collected 5729 | 256 222 147 473 70 . 187 843 526 51 . . . 85 25 68 64 79 42 642 40 308 . . 270 . . . 177 143 . 110 250 31 620 Remotely . | . . . . . . . . . . . . . . . . . . . . . . . . . . . . . . . . . . . Salvage Created 9183 | . 462 80 1420 155 . 223 1554 742 . . . . 200 . 43 . 39 154 1214 123 282 . . 167 77 . . 177 49 . 222 557 31 1212 Parts 487 | . 33 3 83 7 . 39 105 30 . . . . 4 . 5 . 6 7 25 2 29 . . . 8 . . 10 3 . 6 34 5 43 Haulers Intercepted 14 | . 1 . 4 . . . 4 1 . . . . 1 . . . . 1 . . . . . . . . . . . . 2 . . . Recyclers Shooed 11 | . . . 1 . . 2 . 4 . . . . . . . . . . 3 . . . . . . . . . . . . . . 1 Parts Field Recycled . | . . . . . . . . . . . . . . . . . . . . . . . . . . . . . . . . . . . Retrieved Matter . | . . . . . . . . . . . . . . . . . . . . . . . . . . . . . . . . . . . Parts Self-Destructed 18 | . . . . . . . . . . 1 . . . 2 2 . 3 . . . . . . 2 8 . . . . . . . . . Prevented 4 | . . . . . . . . . . 1 . . . . . . . . . . . . . 3 . . . . . . . . . . Kills | -11 -10 -10 -9 -9 -9 -8 -8 -7 -7 -7 -7 -6 -6 -6 -6 -6 -5 -5 -5 -5 -5 -5 -4 -4 -4 -4 -3 -3 -3 -3 -2 -2 -1 -1 ------- Run | Yrd Mat Min Mat Min Exi Min Mat Fac Low Low Dat Pro Fac Low Low Zio Pro Fac Ext Cet Arc Hub Fac Upp Upp War Pro Res Arm Lab Res Tes Acc Com Combat Hostiles Destroyed 143 | . 9 . 27 3 . 15 34 13 . . . . . . 3 . 5 . 6 2 . . . . 3 . . . 2 . . 9 . 12 Melee 22 | . . . . . . . . . . . . . . . . . . . . . . . . . 3 . . . 2 . . 9 . 8 Guns 16 | . 9 . 7 . . . . . . . . . . . . . . . . . . . . . . . . . . . . . . . Cannons 62 | . . . 17 . . . 28 12 . . . . . . . . . . 4 . . . . . . . . . . . . . . 1 AOE 34 | . . . 3 3 . 15 4 . . . . . . . 3 . 5 . 1 . . . . . . . . . . . . . . . Classes Destroyed 16 | . 6 1 4 . . 1 1 1 . . . . . . . . . . . . . . . . . . . . 1 . . 1 . . Worker 16 | . 1 . . . . 3 5 . . . . . . . . . . . 2 . . . . . . . . 1 . . . . . 4 Builder 6 | . . 1 1 . . 1 3 . . . . . . . . . . . . . . . . . . . . . . . . . . . Tunneler 2 | . . . . . . 1 1 . . . . . . . . . . . . . . . . . . . . . . . . . . . Hauler 14 | . 1 . 4 . . . 4 1 . . . . 1 . . . . 1 . . . . . . . . . . . . 2 . . . Recycler 17 | . 2 1 1 2 . 1 2 2 . . . . . . . . . . 3 . . . . . . . . 1 . . . . . 2 Operator 16 | . . . 2 . . . 1 2 . . . . . . . . . . 1 . 8 . . . . . . 1 . . . . 1 . Watcher 13 | . 1 . 2 . . . 1 . . . . . 3 . . . . 2 . . . . . . . . . 1 . . . 1 . 2 Swarmer 54 | . 6 . 3 3 . 12 10 4 . . . . . . 3 . 5 . 1 . . . . . 3 . . . 1 . . 3 . . Saboteur 1 | . . . . . . . . . . . . . . . . . . . . . . . . . . . . . 1 . . . . . Grunt 48 | . 3 . 17 . . 3 13 6 . . . . . . . . . . 4 . . . . . . . . . . . . . . 2 Brawler 1 | . . . 1 . . . . . . . . . . . . . . . . . . . . . . . . . . . . . . . Duelist 2 | . . . 1 . . . 1 . . . . . . . . . . . . . . . . . . . . . . . . . . . Sentry 17 | . . . 5 . . . 9 2 . . . . . . . . . . . . . . . . . . . . . . . . . 1 Hunter 4 | . . . . . . . 1 . . . . . . . . . . . . . . . . . . . . . . . . . . 3 Programmer 8 | . . . . . . . . 1 . . . . . . . . . . . . . . . . . . . . . . . 5 . 2 Cetus Guard 2 | . . . . . . . . . . . . . . . . . . . . 2 . . . . . . . . . . . . . . M Guard 2 | . . . . . . . . . . . . . . . . . . . . . . . . . . . . . . . . . . 2 Combat Programmer 1 | . . . . . . . . . . . . . . . . . . . . . . . . . . . . . . . . . . 1 Protovariant D 1 | . . . . . . . . . . . . . . . . . . . . . . . . . . . . . . . . 1 . . Packrat 2 | . . . . . . . . . . . . . . . . . . . . . . . . 2 . . . . . . . . . . Butcher 1 | . . . . . . . . . . . . . . . . . . . 1 . . . . . . . . . . . . . . . Guerrilla 1 | . . . . . . . . . . . . . . . . . . . 1 . . . . . . . . . . . . . . . Best Kill Streak 16 | . 5 1 6 3 . 16 7 6 . . . . 2 . 3 . 5 1 2 1 7 . . . 3 . . 2 2 . 1 4 1 4 Combat Bots Only 11 | . 5 . 6 3 . 11 4 6 . . . . . . 3 . 5 . 2 2 . . . . 3 . . . 2 . . 3 . 3 Max Kills in Single Turn 5 | . 1 1 3 3 . 5 5 1 . . . . 1 . 3 . 4 1 2 1 1 . . 1 1 . . 1 1 . 1 1 1 1 Gunslinging . | . . . . . . . . . . . . . . . . . . . . . . . . . . . . . . . . . . . Exploded 4 | . . . 2 3 . 4 2 . . . . . . . 3 . 4 . 1 . . . . . . . . . . . . . . . Melee 1 | . . . . . . . . . . . . . . . . . . . . . . . . . 1 . . . 1 . . 1 . 1 Uniques/NPCs Destroyed 1 | . . . . . . . . . . . . . . . . . . . . . . . . . . . . . . . . . . 1 MAIN.C (-1/Command) Combat | -11 -10 -10 -9 -9 -9 -8 -8 -7 -7 -7 -7 -6 -6 -6 -6 -6 -5 -5 -5 -5 -5 -5 -4 -4 -4 -4 -3 -3 -3 -3 -2 -2 -1 -1 -------- Run | Yrd Mat Min Mat Min Exi Min Mat Fac Low Low Dat Pro Fac Low Low Zio Pro Fac Ext Cet Arc Hub Fac Upp Upp War Pro Res Arm Lab Res Tes Acc Com Hostile Shots Fired 1373 | . 39 5 94 3 . 28 163 296 . 2 1 . 26 14 14 . 8 17 76 14 19 125 43 . 32 . 23 6 93 . . 53 35 144 Missed 523 | . 8 . 34 1 . 11 30 112 . 2 . . 17 9 5 . 5 8 20 4 4 54 18 . 13 . 8 2 53 . . 30 21 54 Hits 850 | . 31 5 60 2 . 17 133 184 . . 1 . 9 5 9 . 3 9 56 10 15 71 25 . 19 . 15 4 40 . . 23 14 90 Melee 2 | . . . 1 . . . 1 . . . . . . . . . . . . . . . . . . . . . . . . . . . Projectile 848 | . 31 5 59 2 . 17 132 184 . . 1 . 9 5 9 . 3 9 56 10 15 71 25 . 19 . 15 4 40 . . 23 14 90 AOE 16 | . . 5 . . . . . . . . . . . . . . . . . . . . . . . . 9 . . . . . . 2 Critical Strikes 27 | . . . 1 . . . 6 . . . . . 1 . . . . 1 4 3 . 3 . . . . . . 1 . . . . 7 Actively Blocked 2 | . . . . . . . . . . . . . . . . . . . 1 . . 1 . . . . . . . . . . . . Part Disruptions 3 | . . . . . . . . . . . . . . . . . . . . . . . . . . . . . . . . . . 3 Damage Taken 13917 | . 298 213 727 46 . 169 1283 1848 . . 48 . 146 40 88 . 51 196 1203 303 479 1119 277 . 321 . 659 78 650 . . 543 350 2782 Core 2082 | . 58 50 172 8 . 24 96 168 . . 48 . 48 . 33 . . 140 147 32 73 421 24 . 51 . 122 . 43 . . 93 20 211 Absorbed by Shields 1677 | . . . 66 . . 67 478 80 . . . . . . . . . . 167 . . 107 . . . . 15 . . . . . . 697 Redirected to Shielding 781 | . . . . . . . . . . . . . . . . . . . 46 . 25 54 . . 18 . 258 . 72 . . 121 118 69 Regen/Repaired (Parts) 1328 | . . . . . . . . . . . . . 22 9 30 . . 40 63 71 60 25 54 . . 24 . . 43 . . . 131 756 Core Remaining (%) 73 | 100 . 56 . . . 49 82 . . . . 69 . . . . 90 . . . . 18 . . . . 82 . . 87 . 93 . 85 Volleys Fired 481 | . 35 9 89 18 . 14 104 66 . . . . . . 2 . 2 1 49 8 10 . 1 2 10 . 18 5 2 1 1 10 6 18 Largest 2 | . 2 2 2 1 . 2 2 2 . . . . . . 1 . 1 1 2 2 2 . 1 1 1 . 1 1 1 1 1 1 1 1 Hottest 173 | . 60 100 128 68 . 91 120 160 . . . . . . 39 . 39 98 146 173 70 . 35 35 98 . 98 98 98 100 120 120 120 120 Shots Fired 790 | . 68 14 165 18 . 15 198 117 . . . . . . 2 . 2 1 87 10 19 . 1 2 10 . 18 5 2 1 1 10 6 18 Gun 207 | . 68 11 71 . . 1 . . . . . . . . . . . . 29 5 19 . 1 2 . . . . . . . . . . Cannon 553 | . . . 92 16 . 1 195 117 . . . . . . . . . 1 55 5 . . . . 10 . 18 5 2 1 1 10 6 18 Launcher 27 | . . . 2 2 . 13 3 . . . . . . . 2 . 2 . 3 . . . . . . . . . . . . . . . Special 3 | . . 3 . . . . . . . . . . . . . . . . . . . . . . . . . . . . . . . . Kinetic 311 | . 33 11 71 . . 1 94 32 . . . . . . . . . . 47 . 19 . 1 2 . . . . . . . . . . Thermal 423 | . 6 3 92 16 . 1 101 85 . . . . . . . . . 1 37 10 . . . . 10 . 18 5 2 1 1 10 6 18 Explosive 24 | . . . 2 2 . 13 3 . . . . . . . 2 . 2 . . . . . . . . . . . . . . . . . Electromagnetic 32 | . 29 . . . . . . . . . . . . . . . . . 3 . . . . . . . . . . . . . . . Robot Hit Streak 25 | . 9 9 25 6 . 1 14 17 . . . . . . 1 . 2 . 4 3 4 . . . . . . . . . . . . 3 Robot Miss Streak 6 | . 3 2 6 1 . 2 5 6 . . . . . . 1 . 1 . 4 2 3 . . . . . . . . . . . . 1 Penetration Max 1 | . . . . . . . 1 . . . . . . . . . . . 1 . . . . . . . . . . . . . . . Secondary Targets 1 | . 1 . . . . . . . . . . . . . . . . . . . . . . . . . . . . . . . . . Max Gunslinging Chain 1 | . 1 . . . . . . . . . . . . . . . . . . . . . . . . . . . . . . . . . Shots Hit Robots 574 | . 49 9 107 11 . 3 100 70 . . 1 1 8 . 1 . 1 3 57 6 19 . . 2 6 . . 7 9 . 4 23 1 76 Core Hits 298 | . 19 3 55 5 . 31 52 25 . . . . 4 . 2 . 5 3 30 2 6 . . . 3 . . 3 1 . 2 11 1 35 Critical Kills 9 | . 1 . . . . . 4 . . . . . . . . . . . . 1 . . . . . . . . . . . . . 3 Critical Parts Destroyed 7 | . . . . . . . 3 . . . . . . . . . . . 4 . . . . . . . . . . . . . . . Critical Strikes 34 | . 2 . . . . . 7 3 . . . . 1 . . . . . 5 1 1 . . . 1 . . 1 2 . 1 3 . 6 Meltdown 6 | . . . . . . . 2 . . . . . . . . . . . . 1 . . . . . . . . . . . . . 3 Destroy 12 | . 1 . . . . . 5 . . . . . . . . . . . 5 . 1 . . . . . . . . . . . . . Blast 3 | . . . . . . . . 3 . . . . . . . . . . . . . . . . . . . . . . . . . . Corrupt 1 | . 1 . . . . . . . . . . . . . . . . . . . . . . . . . . . . . . . . . Sever 12 | . . . . . . . . . . . . . 1 . . . . . . . . . . . 1 . . 1 2 . 1 3 . 3 Melee Attacks 419 | . . . . . . . . 7 . . 20 6 34 . 3 2 2 23 14 . 8 5 17 19 9 . 2 23 30 11 10 57 21 96 Impact . | . . . . . . . . . . . . . . . . . . . . . . . . . . . . . . . . . . . Slashing 394 | . . . . . . . . 7 . . 20 6 34 . 3 2 2 19 14 . 8 5 17 19 9 . 2 23 30 11 10 49 18 86 Piercing 25 | . . . . . . . . . . . . . . . . . . 4 . . . . . . . . . . . . . 8 3 10 Sneak Attacks 41 | . . . . . . . . 1 . . 1 . 3 . . . . 1 1 . 8 . . 2 . . . 5 . . 2 10 . 7 Combat Hostiles 1 | . . . . . . . . . . . . . . . . . . . . . . . . . . . . . . . . . . 1 Follow-up Attacks 16 | . . . . . . . . . . . . . . . . . . . . . . . . . . . . . . . . 3 . 13 Damage Inflicted 25318 | . 701 110 1949 416 . 1343 3415 2103 . . 79 49 478 . 342 . 452 156 2796 195 1150 . . 164 250 . . 635 411 . 323 1930 88 5783 Guns 1827 | . 571 90 494 . . . . . . . . . . . . . . . 305 94 273 . . . . . . . . . . . . . Cannons 7704 | . . . 1197 208 . 21 2729 2007 . . . . . . . . . . 1133 101 . . . . . . . . . . . . . 308 Explosions 3856 | . 113 . 258 200 . 1312 677 . . . . . . . 342 . 452 . 502 . . . . . . . . . . . . . . . Melee 11817 | . . . . . . . . 96 . . 79 49 478 . . . . 156 806 . 877 . . 164 250 . . 635 411 . 323 1930 88 5475 Ramming 114 | . 17 20 . 8 . 10 9 . . . . . . . . . . . 50 . . . . . . . . . . . . . . . Kinetic 3449 | . 328 90 494 . . . 1160 568 . . . . . . . . . . 536 . 273 . . . . . . . . . . . . . Thermal 6490 | . 157 . 1197 208 . 21 2063 1439 . . . . . . . . . . 902 195 . . . . . . . . . . . . . 308 Explosive 2747 | . . . 258 200 . 1312 183 . . . . . . . 342 . 452 . . . . . . . . . . . . . . . . . Electromagnetic 701 | . 199 . . . . . . . . . . . . . . . . . 502 . . . . . . . . . . . . . . . Impact . | . . . . . . . . . . . . . . . . . . . . . . . . . . . . . . . . . . . Slashing 11296 | . . . . . . . . 96 . . 79 49 478 . . . . 156 806 . 877 . . 164 250 . . 635 411 . 323 1718 88 5166 Piercing 521 | . . . . . . . . . . . . . . . . . . . . . . . . . . . . . . . . 212 . 309 Highest Corruption 7 | . . . . . . . . 3 3 3 3 3 . . . . . 1 2 2 2 1 . . . . . . . . . 5 1 7 Average Corruption 2 | . . . . . . . . 2 3 3 3 3 . . . . . 1 1 2 1 1 . . . . . . . . . 2 1 3 Corruption Purged 2 | . . . . . . . . . . . . . . . . . . . . . 2 . . . . . . . . . . . . . Corruption Blocked . | . . . . . . . . . . . . . . . . . . . . . . . . . . . . . . . . . . . Effects 70 | . . . . . . . . 11 2 1 1 3 . . . . . 6 14 1 3 . . . . . . . . . . 2 . 26 Message Errors 11 | . . . . . . . . 1 . . . 1 . . . . . . 2 . 1 . . . . . . . . . . 1 . 5 Matter Fused 19 | . . . . . . . . 3 . . . 2 . . . . . 2 4 . 1 . . . . . . . . . . 1 . 6 Heat Flow Errors 10 | . . . . . . . . 1 1 . . . . . . . . 1 3 . . . . . . . . . . . . . . 4 Energy Discharges 6 | . . . . . . . . 1 . . 1 . . . . . . 1 1 . 1 . . . . . . . . . . . . 1 Parts Rejected 5 | . . . . . . . . 2 . . . . . . . . . 1 1 . . . . . . . . . . . . . . 1 Parts Fused 4 | . . . . . . . . 1 . . . . . . . . . . 1 1 . . . . . . . . . . . . . 1 Data Loss (minor) 2 | . . . . . . . . . . . . . . . . . . 1 . . . . . . . . . . . . . . . 1 Data Loss (major) 8 | . . . . . . . . 1 1 1 . . . . . . . . 2 . . . . . . . . . . . . . . 3 Alerts 4 | . . . . . . . . . . . . . . . . . . . . . . . . . . . . . . . . . . 4 Weapon Failures 1 | . . . . . . . . 1 . . . . . . . . . . . . . . . . . . . . . . . . . . Overload Shots . | . . . . . . . . . . . . . . . . . . . . . . . . . . . . . . . . . . . Overflow Damage 1774 | . 1 . 4 61 . 38 129 113 . . . 19 47 . 36 . . . 253 . 245 . . 151 7 . . 65 76 . . 72 . 457 Projectiles 189 | . . . . 25 . . 99 52 . . . . . . . . . . 13 . . . . . . . . . . . . . . . Explosions 145 | . 1 . 4 36 . 38 30 . . . . . . . 36 . . . . . . . . . . . . . . . . . . . Melee 1440 | . . . . . . . . 61 . . . 19 47 . . . . . 240 . 245 . . 151 7 . . 65 76 . . 72 . 457 Knockbacks 21 | . 1 . . . . . 7 10 . . . . . . . . . . 3 . . . . . . . . . . . . . . . Impact 4 | . 1 . . . . . 1 . . . . . . . . . . . 2 . . . . . . . . . . . . . . . Kinetic 15 | . . . . . . . 6 8 . . . . . . . . . . 1 . . . . . . . . . . . . . . . Secondary 2 | . . . . . . . . 2 . . . . . . . . . . . . . . . . . . . . . . . . . . Self-Inflicted Damage 279 | . 22 9 16 28 . 44 93 . . . . . . . . . . . 67 . . . . . . . . . . . . . . . Shots 8 | . 1 . 1 1 . 1 2 . . . . . . . . . . . 2 . . . . . . . . . . . . . . . Rammed 14 | . 3 4 . 1 . 2 . . . . . . . . . . . . 4 . . . . . . . . . . . . . . . Targets Rammed 17 | . 4 4 . 1 . 2 2 . . . . . . . . . . . 4 . . . . . . . . . . . . . . . Kicked . | . . . . . . . . . . . . . . . . . . . . . . . . . . . . . . . . . . . Crushed 3 | . 1 . . . . . 2 . . . . . . . . . . . . . . . . . . . . . . . . . . . Highest Temperature 538 | . 38 96 352 . . . 13 252 265 . . . . . . . . 92 538 84 . 45 . . 295 . 222 182 112 56 94 470 310 427 Average Temperature 82 | . 15 32 62 . . . 5 83 132 . . . . . . . . 30 123 29 . 22 . . 137 . 96 105 33 32 35 105 108 72 Received Heat Transfer 2522 | . 54 . 298 . . 48 373 443 . . . . 21 12 . . . . 720 36 90 153 9 . . . 9 . 63 . . 36 . 157 Effects 10 | . . . . . . . . . . . . . . . . . . . 5 . . . . . 1 . . . . . . 1 1 2 Shutdowns 4 | . . . . . . . . . . . . . . . . . . . 2 . . . . . . . . . . . . . 1 1 Energy Bleed 4 | . . . . . . . . . . . . . . . . . . . 2 . . . . . 1 . . . . . . . . 1 Short Circuit 1 | . . . . . . . . . . . . . . . . . . . . . . . . . . . . . . . . 1 . . Damage (minor) 1 | . . . . . . . . . . . . . . . . . . . 1 . . . . . . . . . . . . . . . Siege Activations . | . . . . . . . . . . . . . . . . . . . . . . . . . . . . . . . . . . . Martial Activations . | . . . . . . . . . . . . . . . . . . . . . . . . . . . . . . . . . . . Shielding Activations . | . . . . . . . . . . . . . . . . . . . . . . . . . . . . . . . . . . . Robots Disrupted . | . . . . . . . . . . . . . . . . . . . . . . . . . . . . . . . . . . . Combat Hostiles . | . . . . . . . . . . . . . . . . . . . . . . . . . . . . . . . . . . . Robots Corrupted 1 | . . . . . . . . . . . . . . . . . . . 1 . . . . . . . . . . . . . . . Combat Hostiles 1 | . . . . . . . . . . . . . . . . . . . 1 . . . . . . . . . . . . . . . Parts Fried . | . . . . . . . . . . . . . . . . . . . . . . . . . . . . . . . . . . . Impact Corruptions . | . . . . . . . . . . . . . . . . . . . . . . . . . . . . . . . . . . . Robots Melted 8 | . . . . . . . 2 1 . . . . . . . . . . . 2 . . . . . . . . . . . . . 3 Combat Hostiles 8 | . . . . . . . 2 1 . . . . . . . . . . . 2 . . . . . . . . . . . . . 3 Parts Melted 13 | . . . 2 . . . 5 4 . . . . . . . . . . . 2 . . . . . . . . . . . . . . Heat Transferred 11156 | . 200 . 2442 370 . 37 3392 2750 . . . . . . . . . . 1350 298 . . . . . . . . . . . . . 317 Parts Sabotaged . | . . . . . . . . . . . . . . . . . . . . . . . . . . . . . . . . . . . Parts Stolen . | . . . . . . . . . . . . . . . . . . . . . . . . . . . . . . . . . . . Parts Stripped . | . . . . . . . . . . . . . . . . . . . . . . . . . . . . . . . . . . . Power Chain Reactions 3 | . 2 . . . . . . . . . . . . . . . . . 1 . . . . . . . . . . . . . . . Alert | -11 -10 -10 -9 -9 -9 -8 -8 -7 -7 -7 -7 -6 -6 -6 -6 -6 -5 -5 -5 -5 -5 -5 -4 -4 -4 -4 -3 -3 -3 -3 -2 -2 -1 -1 ------- Run | Yrd Mat Min Mat Min Exi Min Mat Fac Low Low Dat Pro Fac Low Low Zio Pro Fac Ext Cet Arc Hub Fac Upp Upp War Pro Res Arm Lab Res Tes Acc Com Maximum Alert Level 3 | . . . 1 . . 1 2 1 . . . . . . . . . . 3 2 1 1 . . . . . . 2 . . . . . Low Security (%) 82 | 100 100 100 92 100 . 64 68 75 . . . . 100 . . . . 100 36 . 72 74 100 . . . . 100 72 . 100 100 100 100 Level 1 11 | . . . 7 . . 35 21 24 . . . . . . . . . . 12 24 27 25 . . . . . . 22 . . . . . Level 2 5 | . . . . . . . 9 . . . . . . . . . . . 37 75 . . . . . . . . 4 . . . . . Level 3 1 | . . . . . . . . . . . . . . . . . . . 14 . . . . . . . . . . . . . . . Level 4 . | . . . . . . . . . . . . . . . . . . . . . . . . . . . . . . . . . . . Level 5 . | . . . . . . . . . . . . . . . . . . . . . . . . . . . . . . . . . . . High Security . | . . . . . . . . . . . . . . . . . . . . . . . . . . . . . . . . . . . Max Security . | . . . . . . . . . . . . . . . . . . . . . . . . . . . . . . . . . . . Peak Influence 775 | . 109 22 333 134 . 315 585 263 . . . . 150 . . . . 68 775 476 241 254 123 . . . . 30 407 . 12 126 48 85 Initial 397 | . . 22 . 127 . . . 263 . . . . 150 . . . . 15 25 397 154 53 123 . . . . . 15 . . 2 24 . Average 110 | . 30 . 98 28 . 134 186 107 . . . . 63 . . . . 10 383 425 186 107 13 . . . . 4 107 . 1 31 13 27 Influence Increases 9704 | . 326 13 813 96 . 448 1330 467 . 90 . . 486 105 100 . 125 208 1869 179 271 403 192 . 135 . 45 151 656 . 47 430 191 528 Destroy 0b10 Robot/C 3700 | . 180 . 540 60 . 300 680 260 . . . . . . 60 . 100 . 760 80 80 . . . 60 . . . 120 . . 180 . 240 Destroy 0b10 Robot/NC 485 | . 25 10 50 10 . 30 85 25 . . . . 20 . . . . 15 85 5 40 . . . . . . 20 . . 10 5 5 45 Destroy Leader 648 | . 44 . 142 10 . 40 160 62 . . . . 8 . 10 . 10 6 64 . . . . . . . . 2 20 . 4 32 . 34 Allied During Kill 908 | . . . . . . . . . . . . . . . . . . . 722 82 81 . . . . . . . 23 . . . . . Successful Hack 451 | . 9 . 30 . . . 9 . . . . . 57 . . . . 27 22 . . 15 68 . . . . 9 56 . 12 57 27 53 Select Force Hacks 110 | . 60 . . . . . . . . . . . . . . . . . . . . 50 . . . . . . . . . . . . Disable Machine 435 | . . . 15 . . . 150 15 . . . . . . . . . . 30 . 60 45 . . . . . 15 15 . . 45 30 15 Destroy Structure 747 | . 8 3 21 16 . 78 141 15 . . . . 26 . . . . 40 96 12 10 8 34 . . . . 30 32 . 21 66 54 36 Advance Influence 150 | . . . . . . . . . . . . . 150 . . . . . . . . . . . . . . . . . . . . . Partial Spotted 375 | . . . . . . . 15 15 . . . . 60 . . . . 15 15 . . 30 . . . . . 30 75 . . 15 60 45 Lose Combat Pursuer 1695 | . . . 15 . . . 90 75 . 90 . . 165 105 30 . 15 105 75 . . 255 90 . 75 . 45 45 315 . . 30 15 60 Influence Decreases 9675 | . 267 72 486 423 . 448 749 799 143 81 115 . 411 79 170 31 100 181 1211 503 502 304 397 49 70 65 45 121 285 401 42 395 231 499 Entered New Map 2198 | . . 37 . 200 . . . 318 93 21 115 . . 29 20 31 . 10 27 313 232 102 131 19 . 65 . . 15 401 . 3 16 . Time Decay 5537 | . 257 35 441 223 . 448 579 421 50 60 . . 294 40 150 . 100 152 544 110 170 62 94 30 70 . 40 111 166 . 42 207 198 443 Lost Part 416 | . 10 . 10 . . . 20 60 . . . . 10 10 . . . 19 50 20 20 60 2 . . . 5 . 60 . . 10 4 46 Lost Ally 424 | . . . . . . . . . . . . . 10 . . . . . 140 60 80 80 4 . . . . 10 20 . . . 10 10 Purge Threat 1100 | . . . 35 . . . 150 . . . . . 97 . . . . . 450 . . . 166 . . . . . 24 . . 175 3 . Squads Dispatched 66 | . 4 . 4 . . . 3 7 . . . . 6 . . . . 5 1 . . 6 4 . . . . 2 3 . 1 5 7 8 Investigation 19 | . 3 . 1 . . . . 1 . . . . 2 . . . . 3 . . . 4 1 . . . . 1 1 . . 1 1 . Extermination 19 | . . . . . . . . 3 . . . . 2 . . . . 1 . . . . 1 . . . . 1 1 . . 2 2 6 Reinforcement 23 | . 1 . 3 . . . 3 1 . . . . 2 . . . . 1 1 . . 2 2 . . . . . 1 . 1 2 1 2 Assault . | . . . . . . . . . . . . . . . . . . . . . . . . . . . . . . . . . . . Garrison 5 | . . . . . . . . 2 . . . . . . . . . . . . . . . . . . . . . . . . 3 . Intercept . | . . . . . . . . . . . . . . . . . . . . . . . . . . . . . . . . . . . Searches Triggered . | . . . . . . . . . . . . . . . . . . . . . . . . . . . . . . . . . . . Construction Impeded 4 | . . . . . . . 2 . . . . . . . . . . . 1 . . 1 . . . . . . . . . . . . Haulers Reinforced 4 | . . . . . . . . 1 . . . . 1 . . . . . . . . . . . . . . . . . 1 . 1 . Active Scanning Responses . | . . . . . . . . . . . . . . . . . . . . . . . . . . . . . . . . . . . Cargo Convoy Interrupts . | . . . . . . . . . . . . . . . . . . . . . . . . . . . . . . . . . . . Stealth | -11 -10 -10 -9 -9 -9 -8 -8 -7 -7 -7 -7 -6 -6 -6 -6 -6 -5 -5 -5 -5 -5 -5 -4 -4 -4 -4 -3 -3 -3 -3 -2 -2 -1 -1 --------- Run | Yrd Mat Min Mat Min Exi Min Mat Fac Low Low Dat Pro Fac Low Low Zio Pro Fac Ext Cet Arc Hub Fac Upp Upp War Pro Res Arm Lab Res Tes Acc Com Distress Signals 64 | . . . 4 . . . 4 . . . . . 3 . . . . . 3 1 . 9 1 . . . 5 1 3 . 8 . 1 21 Communications Jammed 52 | . . . . . . . . . . . . . . . . . . . . . . . . . . . . . 21 . . 17 6 8 Distress Signals 52 | . . . . . . . . . . . . . . . . . . . . . . . . . . . . . 21 . . 17 6 8 Times Spotted 490 | . 13 13 43 3 . 14 47 22 . 5 4 1 18 11 5 . 6 12 45 5 4 56 21 . 11 . 14 5 29 . 1 22 18 42 Peak Tracking Total 43 | . 3 7 5 3 . 8 6 7 . 4 4 1 6 8 5 . 6 6 5 5 2 43 8 . 7 . 10 3 10 . . 7 11 6 Tactical Retreats 56 | . . . 1 . . . 4 4 . 2 . . 6 3 2 . 1 4 3 . . 4 2 . 3 . 3 2 8 . . 1 1 2 Traps | -11 -10 -10 -9 -9 -9 -8 -8 -7 -7 -7 -7 -6 -6 -6 -6 -6 -5 -5 -5 -5 -5 -5 -4 -4 -4 -4 -3 -3 -3 -3 -2 -2 -1 -1 ------- Run | Yrd Mat Min Mat Min Exi Min Mat Fac Low Low Dat Pro Fac Low Low Zio Pro Fac Ext Cet Arc Hub Fac Upp Upp War Pro Res Arm Lab Res Tes Acc Com Traps Triggered 10 | . 3 . . . . . 1 1 . . . . . . . . . . 1 . . 2 . . . . 1 . . . . . . 1 Indirectly . | . . . . . . . . . . . . . . . . . . . . . . . . . . . . . . . . . . . Trap Hack Attempts . | . . . . . . . . . . . . . . . . . . . . . . . . . . . . . . . . . . . Triggered . | . . . . . . . . . . . . . . . . . . . . . . . . . . . . . . . . . . . Disarmed 18 | . . . . . . . . . . . . . . . . . . . . . . . . . . . . 6 . . . 6 . 6 Reprogrammed . | . . . . . . . . . . . . . . . . . . . . . . . . . . . . . . . . . . . Reused . | . . . . . . . . . . . . . . . . . . . . . . . . . . . . . . . . . . . Traps Extracted . | . . . . . . . . . . . . . . . . . . . . . . . . . . . . . . . . . . . Installed . | . . . . . . . . . . . . . . . . . . . . . . . . . . . . . . . . . . . Triggered . | . . . . . . . . . . . . . . . . . . . . . . . . . . . . . . . . . . . Machines | -11 -10 -10 -9 -9 -9 -8 -8 -7 -7 -7 -7 -6 -6 -6 -6 -6 -5 -5 -5 -5 -5 -5 -4 -4 -4 -4 -3 -3 -3 -3 -2 -2 -1 -1 ---------- Run | Yrd Mat Min Mat Min Exi Min Mat Fac Low Low Dat Pro Fac Low Low Zio Pro Fac Ext Cet Arc Hub Fac Upp Upp War Pro Res Arm Lab Res Tes Acc Com Machines Disabled 41 | . . . 1 2 . . 10 1 . . 1 1 . . . . . . 5 . 4 3 . . . . . 1 1 4 . 4 2 1 Max in Single Turn 3 | . . . 1 2 . . 3 1 . . 1 1 . . . . . . 1 . 1 1 . . . . . 1 1 1 . 1 1 1 Garrison Access 10 | . . . . . . . 1 . . . . . 1 . . . . 2 . . . 1 1 . . . . . . . 1 1 2 . Network Hub 2 | . . . . . . . . . . . . . . . . . . . . . . 2 . . . . . . . . . . . . Energy Cycler 1 | . . . . . . . . . . . . . . . . . . . . . . . . . . . . . 1 . . . . . Machines Repaired . | . . . . . . . . . . . . . . . . . . . . . . . . . . . . . . . . . . . Machines Dismantled 1 | . . . . . . . . . . . . . . . . . . . . . . 1 . . . . . . . . . . . . Machines Sabotaged 1 | . . . . . . . . . . . . . . . . . . . . . . 1 . . . . . . . . . . . . Overloaded Fab Kills . | . . . . . . . . . . . . . . . . . . . . . . . . . . . . . . . . . . . Hacking | -11 -10 -10 -9 -9 -9 -8 -8 -7 -7 -7 -7 -6 -6 -6 -6 -6 -5 -5 -5 -5 -5 -5 -4 -4 -4 -4 -3 -3 -3 -3 -2 -2 -1 -1 --------- Run | Yrd Mat Min Mat Min Exi Min Mat Fac Low Low Dat Pro Fac Low Low Zio Pro Fac Ext Cet Arc Hub Fac Upp Upp War Pro Res Arm Lab Res Tes Acc Com Machines Accessed 139 | . 7 . 8 . 1 . 7 4 . . 4 1 12 . . . 1 13 10 . . 8 9 1 . 3 . 4 6 . 2 12 13 13 Terminals 93 | . 5 . 7 . . . 6 1 . . . . 7 . . . 1 7 10 . . 7 5 . . . . 3 4 . 1 9 9 11 Fabricators 13 | . . . . . . . . 1 . . . . 3 . . . . 3 . . . . 2 . . . . 1 1 . . 1 1 . Repair Stations 7 | . . . 1 . . . . . . . . . . . . . . 1 . . . . 1 . . . . . 1 . . . 1 2 Recycling Units 3 | . 2 . . . . . . 1 . . . . . . . . . . . . . . . . . . . . . . . . . . Scanalyzers 1 | . . . . . . . . . . . . . . . . . . . . . . . . . . . . . . . . 1 . . Garrison Access 12 | . . . . . . . 1 1 . . . . 2 . . . . 2 . . . 1 1 . . . . . . . 1 1 2 . Total Hacks 462 | . 14 . 21 . 1 . 14 8 . . 28 1 41 . . . 1 45 23 . . 14 42 1 . 6 . 22 26 . 5 68 39 42 Successful 325 | . 9 . 12 . 1 . 8 1 . . 28 1 22 . . . 1 32 19 . . 10 30 1 . 6 . 22 18 . 2 43 33 26 Failed 136 | . 5 . 9 . . . 6 7 . . . . 19 . . . . 13 4 . . 4 12 . . . . . 8 . 3 24 6 16 Catastrophic 18 | . . . 2 . . . . 3 . . . . 1 . . . . 2 . . . 1 2 . . . . . 1 . . 3 . 3 Database Lockouts 1 | . . . . . . . . . . . . . . . . . . . . . . . . . . . . . . . . 1 . . Manual 204 | . 11 . 13 . . . 5 1 . . . . 24 . . 1 . 24 6 . . 9 26 . . 1 . 15 10 . 1 34 12 11 Terminals 331 | . 12 . 19 . . . 13 1 . . . . 25 . . . 1 29 23 . . 13 34 . . . . 19 18 . 4 60 30 30 Fabricators 41 | . . . . . . . . 1 . . . . 13 . . . . 8 . . . . 5 . . . . 3 4 . . 4 3 . Repair Stations 26 | . . . 2 . . . . . . . . . . . . . . 2 . . . . 2 . . . . . 4 . . . 4 12 Recycling Units 6 | . 2 . . . . . . 4 . . . . . . . . . . . . . . . . . . . . . . . . . . Scanalyzers 3 | . . . . . . . . . . . . . . . . . . . . . . . . . . . . . . . . 3 . . Garrison Access 18 | . . . . . . . 1 2 . . . . 3 . . . . 6 . . . 1 1 . . . . . . . 1 1 2 . Terminal Hacks 195 | . . . 4 . 1 . 6 . . . 28 1 6 . . . 1 14 17 . . 5 17 1 . 6 . 11 11 . 1 32 19 14 Record 27 | . . . . . 1 . . . . . 11 1 . . . . 1 . . . . . 2 . . 4 . . 2 . . 2 1 2 Part Schematic 16 | . . . . . . . . . . . 8 . 1 . . . . . 1 . . . 2 . . . . 3 . . . 1 . . Robot Schematic 6 | . . . . . . . . . . . 6 . . . . . . . . . . . . . . . . . . . . . . . Robot Analysis 2 | . . . . . . . . . . . . . . . . . . . . . . . . . . . . 1 . . . . . 1 Prototype ID Bank 15 | . . . . . . . . . . . 3 . 1 . . . . 2 2 . . . 1 . . . . . 1 . . 2 3 . Open Door 13 | . . . . . . . . . . . . . . . . . . . 5 . . . . 1 . 2 . . . . . 1 3 1 Level Access Points 1 | . . . . . . . . . . . . . . . . . . . . . . . . . . . . . . . . 1 . . Branch Access Points 6 | . . . . . . . 1 . . . . . 1 . . . . 1 . . . . 1 . . . . 1 . . . . 1 . Emergency Access Points 5 | . . . 2 . . . . . . . . . . . . . . . . . . 1 . . . . . . 1 . . . 1 . Machine Index 11 | . . . . . . . . . . . . . 1 . . . . 1 1 . . 1 1 . . . . 1 1 . . 2 1 1 Terminal Index 5 | . . . . . . . . . . . . . . . . . . 1 1 . . 1 . . . . . . . . 1 . . 1 Garrison Index 1 | . . . . . . . . . . . . . . . . . . . . . . . . . . . . . . . . 1 . . Alert Level 6 | . . . . . . . . . . . . . . . . . . . . . . 1 1 . . . . . . . . 2 1 1 Unreport Threat 16 | . . . 1 . . . 1 . . . . . 1 . . . . 3 3 . . . 3 . . . . . 1 . . 2 1 . Locate Traps 17 | . . . 1 . . . . . . . . . . . . . . 1 2 . . . 2 . . . . 1 2 . . 2 2 4 Disarm Traps 3 | . . . . . . . . . . . . . . . . . . . . . . . . . . . . 1 . . . 1 . 1 Dispatch Records 1 | . . . . . . . 1 . . . . . . . . . . . . . . . . . . . . . . . . . . . Maintenance Status 5 | . . . . . . . . . . . . . . . . . . 1 . . . . 2 . . . . 1 . . . 1 . . Security Status 1 | . . . . . . . . . . . . . . . . . . . . . . . . . . . . . . . . 1 . . Surveillance Status 1 | . . . . . . . . . . . . . . . . . . . . . . . . . . . . . . . . 1 . . Patrol Status 2 | . . . . . . . . . . . . . . . . . . . 1 . . . . . . . . . . . . 1 . . Recall Investigation 3 | . . . . . . . . . . . . . . . . . . . . . . . 1 . . . . . . . . 1 1 . Recall Extermination 3 | . . . . . . . . . . . . . . . . . . 1 . . . . 1 . . . . . . . . 1 . . Recall Reinforcements 1 | . . . . . . . . . . . . . . . . . . . . . . . . . . . . . . . . 1 . . Hauler Manifests 4 | . . . . . . . 1 . . . . . . . . . . 1 . . . . . . . . . 1 . . . 1 . . Registered Components 1 | . . . . . . . . . . . . . . . . . . . . . . . . . . . . . . . . 1 . . Registered Prototypes 3 | . . . . . . . . . . . . . . . . . . . . . . . . . . . . 1 1 . . 1 . . Zone Layout 18 | . . . . . . . 2 . . . . . 1 . . . . 2 1 . . 1 . . . . . . 2 . . 5 4 . Disengage Seal 2 | . . . . . . . . . . . . . . . . . . . . . . . . . . . . . . . . . . 2 Fabricator Hacks 22 | . . . . . . . . 1 . . . . 5 . . . . 5 . . . . 3 . . . . 2 2 . . 2 2 . Network Status 2 | . . . . . . . . 1 . . . . 1 . . . . . . . . . . . . . . . . . . . . . Load Schematic 9 | . . . . . . . . . . . . . 2 . . . . 2 . . . . 1 . . . . 1 1 . . 1 1 . Build 11 | . . . . . . . . . . . . . 2 . . . . 3 . . . . 2 . . . . 1 1 . . 1 1 . Repair Station Hacks 21 | . . . 1 . . . . . . . . . . . . . . 2 . . . . 2 . . . . . 2 . . . 4 10 Scan Component 11 | . . . 1 . . . . . . . . . . . . . . 1 . . . . 1 . . . . . 1 . . . 2 5 Repair 10 | . . . . . . . . . . . . . . . . . . 1 . . . . 1 . . . . . 1 . . . 2 5 Recycling Unit Hacks . | . . . . . . . . . . . . . . . . . . . . . . . . . . . . . . . . . . . Scanalyzer 2 | . . . . . . . . . . . . . . . . . . . . . . . . . . . . . . . . 2 . . Insert Component 2 | . . . . . . . . . . . . . . . . . . . . . . . . . . . . . . . . 2 . . Garrison Access Hacks 10 | . . . . . . . 1 . . . . . 1 . . . . 2 . . . 1 1 . . . . . . . 1 1 2 . Seal Access 10 | . . . . . . . 1 . . . . . 1 . . . . 2 . . . 1 1 . . . . . . . 1 1 2 . Unauthorized Hacks 75 | . 9 . 7 . . . 1 . . . . . 10 . . . . 9 2 . . 4 7 . . . . 9 3 . . 6 6 2 Terminals 60 | . 7 . 7 . . . 1 . . . . . 8 . . . . 5 2 . . 4 5 . . . . 8 2 . . 4 5 2 Track 3 | . . . . . . . . . . . . . . . . . . . . . . . 1 . . . . 1 . . . . 1 . Assimilate 9 | . . . . . . . . . . . . . 2 . . . . . 1 . . . 1 . . . . 2 . . . 1 1 1 Botnet 21 | . 2 . 1 . . . 1 . . . . . 2 . . . . 3 1 . . . 2 . . . . 2 2 . . 2 2 1 Operators 6 | . . . 1 . . . . . . . . . 1 . . . . . . . . . 1 . . . . 1 . . . 1 1 . Skim 17 | . 5 . 5 . . . . . . . . . 3 . . . . 2 . . . . . . . . . 2 . . . . . . Sabotage 4 | . . . . . . . . . . . . . . . . . . . . . . 4 . . . . . . . . . . . . Fabricators 11 | . . . . . . . . . . . . . 2 . . . . 3 . . . . 2 . . . . 1 1 . . 1 1 . Prioritize 10 | . . . . . . . . . . . . . 1 . . . . 3 . . . . 2 . . . . 1 1 . . 1 1 . Haulers 1 | . . . . . . . . . . . . . 1 . . . . . . . . . . . . . . . . . . . . . Repair Stations . | . . . . . . . . . . . . . . . . . . . . . . . . . . . . . . . . . . . Recycling Units 2 | . 2 . . . . . . . . . . . . . . . . . . . . . . . . . . . . . . . . . Tunnel 2 | . 2 . . . . . . . . . . . . . . . . . . . . . . . . . . . . . . . . . Scanalyzers 1 | . . . . . . . . . . . . . . . . . . . . . . . . . . . . . . . . 1 . . Researchers 1 | . . . . . . . . . . . . . . . . . . . . . . . . . . . . . . . . 1 . . Garrison Access 1 | . . . . . . . . . . . . . . . . . . 1 . . . . . . . . . . . . . . . . Watchers 1 | . . . . . . . . . . . . . . . . . . 1 . . . . . . . . . . . . . . . . Data Cores Recovered 3 | . . . . . . . . 1 . . . . . . . . . . . . . . . . . . . 1 . . . . 1 . Used . | . . . . . . . . . . . . . . . . . . . . . . . . . . . . . . . . . . . Hacking Detections 72 | . 3 . 6 . . . 4 3 . . . . 10 . . . . 10 5 . . 3 4 . . . . 3 5 . 1 8 5 2 Full Trace Events 12 | . . . 1 . . . . 1 . . . . 2 . . . . 3 . . . . 1 . . . . 1 1 . . 1 1 . Feedback Events 1 | . . . . . . . . . . . . . . . . . . 1 . . . . . . . . . . . . . . . . Corruption 1 | . . . . . . . . . . . . . . . . . . 1 . . . . . . . . . . . . . . . . Feedback Blocked . | . . . . . . . . . . . . . . . . . . . . . . . . . . . . . . . . . . . Robot Schematics Acquired 9 | . . . . . . . . . . . 6 . . . . 3 . . . . . . . . . . . . . . . . . . Robots Built . | . . . . . . . . . . . . . . . . . . . . . . . . . . . . . . . . . . . Authchips . | . . . . . . . . . . . . . . . . . . . . . . . . . . . . . . . . . . . Time . | . . . . . . . . . . . . . . . . . . . . . . . . . . . . . . . . . . . Total Robot Build Rating . | . . . . . . . . . . . . . . . . . . . . . . . . . . . . . . . . . . . Part Schematics Acquired 30 | . . . . . . . . . . . 8 . 1 . . 14 . . 1 . . . 2 . . . . 3 . . . 1 . . Parts Built 13 | . . . . . . . . . . . . . 2 . . . . 4 . . . . 3 . . . . 1 1 . . 1 1 . Authchips . | . . . . . . . . . . . . . . . . . . . . . . . . . . . . . . . . . . . Time 502 | . . . . . . . . . . . . . 109 . . . . 119 . . . . 131 . . . . 32 22 . . 55 34 . Total Part Build Rating 78 | . . . . . . . . . . . . . 9 . . . . 20 . . . . 20 . . . . 8 4 . . 9 8 . Parts Repaired 9 | . . . . . . . . . . . . . . . . . . 1 . . . . 1 . . . . . 1 . . . 2 4 Time 326 | . . . . . . . . . . . . . . . . . . 35 . . . . 28 . . . . . 23 . . . 54 186 Parts Recycled . | . . . . . . . . . . . . . . . . . . . . . . . . . . . . . . . . . . . Recycled Matter . | . . . . . . . . . . . . . . . . . . . . . . . . . . . . . . . . . . . Retrieved Matter . | . . . . . . . . . . . . . . . . . . . . . . . . . . . . . . . . . . . Retrieved Components . | . . . . . . . . . . . . . . . . . . . . . . . . . . . . . . . . . . . Parts Scanalyzed . | . . . . . . . . . . . . . . . . . . . . . . . . . . . . . . . . . . . Part Schematics Acquired . | . . . . . . . . . . . . . . . . . . . . . . . . . . . . . . . . . . . Parts Damaged . | . . . . . . . . . . . . . . . . . . . . . . . . . . . . . . . . . . . Bothacking | -11 -10 -10 -9 -9 -9 -8 -8 -7 -7 -7 -7 -6 -6 -6 -6 -6 -5 -5 -5 -5 -5 -5 -4 -4 -4 -4 -3 -3 -3 -3 -2 -2 -1 -1 ------------ Run | Yrd Mat Min Mat Min Exi Min Mat Fac Low Low Dat Pro Fac Low Low Zio Pro Fac Ext Cet Arc Hub Fac Upp Upp War Pro Res Arm Lab Res Tes Acc Com Used RIF Installer . | . . . . . . . . . . . . . . . . . . . . . . . . . . . . . . . . . . . Robots Hacked . | . . . . . . . . . . . . . . . . . . . . . . . . . . . . . . . . . . . Non-combat . | . . . . . . . . . . . . . . . . . . . . . . . . . . . . . . . . . . . Combat . | . . . . . . . . . . . . . . . . . . . . . . . . . . . . . . . . . . . Robot Hacks Applied . | . . . . . . . . . . . . . . . . . . . . . . . . . . . . . . . . . . . Relay Couplers Released 2 | . . . . . . . . . . . . . . . . . . . . . . . . . . . . . . . 2 . . . Machine Destruction 2 | . . . . . . . . . . . . . . . . . . . . . . . . . . . . . . . 2 . . . Fabnet Peak Effective % . | . . . . . . . . . . . . . . . . . . . . . . . . . . . . . . . . . . . Robots Rewired 18 | . . . . . . . . . . . . . . . . . . . 15 . . . . . . . . . 3 . . . . . Allies Hacked . | . . . . . . . . . . . . . . . . . . . . . . . . . . . . . . . . . . . Hacks Repelled . | . . . . . . . . . . . . . . . . . . . . . . . . . . . . . . . . . . . Allies | -11 -10 -10 -9 -9 -9 -8 -8 -7 -7 -7 -7 -6 -6 -6 -6 -6 -5 -5 -5 -5 -5 -5 -4 -4 -4 -4 -3 -3 -3 -3 -2 -2 -1 -1 -------- Run | Yrd Mat Min Mat Min Exi Min Mat Fac Low Low Dat Pro Fac Low Low Zio Pro Fac Ext Cet Arc Hub Fac Upp Upp War Pro Res Arm Lab Res Tes Acc Com Total Allies 35 | . . 3 . . . . . . . . . . 1 . . . . . 24 . . . 1 . . . . 1 3 . . . 1 1 Largest Group 17 | . . 3 . . . . . . . . . . 1 . . . . . 17 14 11 7 1 . . . . 1 3 1 . . 1 1 Highest-Rated Group 503 | . . 40 . . . . . . . . . . 26 . . . . . 503 398 322 209 10 . . . . 10 150 50 . . 26 26 Highest-Rated Ally 159 | . . 16 . . . . . . . . . . 26 . . . . . 159 39 39 39 10 . . . . 10 50 50 . . 26 26 Total Orders 10 | . . . . . . . . . . . . . . . . . . . 6 . 1 . . . . . . . . 3 . . . . STAY 5 | . . . . . . . . . . . . . . . . . . . 3 . . . . . . . . . . 2 . . . . FOLLOW 5 | . . . . . . . . . . . . . . . . . . . 3 . 1 . . . . . . . . 1 . . . . Ally Attacks 379 | . . 27 . . . . . . . . . . . . . . . . 244 24 51 18 . . . . . . 15 . . . . . Total Damage 7359 | . . 248 . . . . . . . . . . . . . . . . 5162 338 794 323 . . . . . . 494 . . . . . Kills 56 | . . 3 . . . . . . . . . . . . . . . . 42 3 4 . . . . . . . 4 . . . . . Allies Corrupted . | . . . . . . . . . . . . . . . . . . . . . . . . . . . . . . . . . . . Allies Melted 2 | . . . . . . . . . . . . . . . . . . . . . . . . . . . . . . . 2 . . . Intel | -11 -10 -10 -9 -9 -9 -8 -8 -7 -7 -7 -7 -6 -6 -6 -6 -6 -5 -5 -5 -5 -5 -5 -4 -4 -4 -4 -3 -3 -3 -3 -2 -2 -1 -1 ------- Run | Yrd Mat Min Mat Min Exi Min Mat Fac Low Low Dat Pro Fac Low Low Zio Pro Fac Ext Cet Arc Hub Fac Upp Upp War Pro Res Arm Lab Res Tes Acc Com Active Infowar (turns) 14391 | . 913 . 529 . . . . 1001 109 121 112 175 648 86 311 247 359 548 1577 222 350 151 594 1003 314 175 334 354 508 1002 395 645 564 1044 Optics 4375 | . . . . . . . . 189 109 121 112 175 648 86 311 247 359 548 967 . . . . . . . . . . . . . . 503 Sensors 6852 | . . . . . . . . 177 109 121 112 175 273 . . . . . . . . 141 567 1003 314 74 334 353 508 1002 395 625 564 5 IFF 2482 | . . . . . . . . . . . . . 282 86 311 247 359 548 383 . 260 6 . . . . . . . . . . . . Structural 913 | . 913 . . . . . . . . . . . . . . . . . . . . . . . . . . . . . . . . . Seismic 1432 | . . . 529 . . . . 811 . . . . 92 . . . . . . . . . . . . . . . . . . . . . Decoding 1091 | . . . . . . . . . . . . . . . . 165 359 548 19 . . . . . . . . . . . . . . . Machine Analysis 7737 | . . . . . . . . 190 109 121 112 175 648 86 311 247 359 548 1577 222 350 151 594 1003 314 175 334 111 . . . . . . Cloaking 17 | . . . . . . . . . . . . . . . . . . . . . . . 17 . . . . . . . . . . . Jamming 3396 | . . . . . . . . . . . . . . . . . . . . . . . 1 . . . . . 212 1002 394 645 564 578 Robot Analysis Total 2 | . . . . . . . . . . . . . . . . . . . . . . . . . . . . 1 . . . . . 1 Derelict Logs Recovered 13 | . . 2 . 1 . . . . 1 2 . 1 . 1 1 2 1 . . . . . . 1 . . . . . . . . . . Drone Launches . | . . . . . . . . . . . . . . . . . . . . . . . . . . . . . . . . . . . Drone Recoveries . | . . . . . . . . . . . . . . . . . . . . . . . . . . . . . . . . . . . Decoded 0b10 Intel 16 | . . . . . . . . . . . . . . . . . . 16 . . . . . . . . . . . . . . . . Garrisons 1 | . . . . . . . . . . . . . . . . . . 1 . . . . . . . . . . . . . . . . Patrols 9 | . . . . . . . . . . . . . . . . . . 9 . . . . . . . . . . . . . . . . Investigations 1 | . . . . . . . . . . . . . . . . . . 1 . . . . . . . . . . . . . . . . Guards 5 | . . . . . . . . . . . . . . . . . . 5 . . . . . . . . . . . . . . . . Exploration | -11 -10 -10 -9 -9 -9 -8 -8 -7 -7 -7 -7 -6 -6 -6 -6 -6 -5 -5 -5 -5 -5 -5 -4 -4 -4 -4 -3 -3 -3 -3 -2 -2 -1 -1 ------------- Run | Yrd Mat Min Mat Min Exi Min Mat Fac Low Low Dat Pro Fac Low Low Zio Pro Fac Ext Cet Arc Hub Fac Upp Upp War Pro Res Arm Lab Res Tes Acc Com Turns Passed 23492 | 140 956 897 1662 1284 339 1517 2728 1409 109 121 112 175 648 86 311 247 359 548 1577 222 350 151 594 1003 314 175 334 354 508 1002 395 645 564 1656 Spaces Moved 22911 | 82 533 634 687 514 142 614 956 940 371 333 144 444 1376 315 920 765 1019 871 1195 103 186 305 793 928 576 510 651 559 701 263 758 906 852 1965 Core 141 | 6 1 . . . . . . . . . . . . . . . . . . . 7 20 107 . . . . . . . . . . . Treads 3532 | 76 444 . 439 514 142 614 956 345 . . . . . . . . . . . . . . 2 . . . . . . . . . . . Legs 1 | . . . . . . . . . . . . . . . . . . . 1 . . . . . . . . . . . . . . . Wheels 1850 | . 88 634 248 . . . . 89 . . . . . . . . . . 673 103 15 . . . . . . . . . . . . . Hover 1071 | . . . . . . . . . . . . . . . . . . . . . . . 124 . . . . . . . . . . 947 Flight 16316 | . . . . . . . . 506 371 333 144 444 1376 315 920 765 1019 871 521 . 164 285 560 928 576 510 651 559 701 263 758 906 852 1018 Fastest Speed 20 | 50 105 120 120 240 240 240 240 29 29 29 29 29 27 27 28 28 28 20 29 130 29 20 31 31 31 31 27 27 29 31 31 29 29 29 Average Speed 69 | 151 151 120 186 240 240 240 240 116 29 29 29 29 27 27 28 28 29 29 91 146 50 29 43 31 31 31 30 29 32 31 31 33 30 35 Slowest Speed 360 | 160 240 155 240 240 240 240 240 240 29 29 29 29 29 30 28 28 30 34 260 190 295 50 200 31 31 31 31 107 110 103 33 109 109 360 Overloaded Moves 341 | . . . . . . . . . . . . . . . . . . 21 . . . 27 . . . . 26 225 26 . . 16 . . Propulsion Burnouts . | . . . . . . . . . . . . . . . . . . . . . . . . . . . . . . . . . . . Robots Hopped 73 | . . . . . . . . 2 . . . . 10 . 1 . . 3 5 . . 15 3 . . . . 4 2 . 2 14 2 10 Potential Cave-ins . | . . . . . . . . . . . . . . . . . . . . . . . . . . . . . . . . . . . Cave-ins Triggered . | . . . . . . . . . . . . . . . . . . . . . . . . . . . . . . . . . . . Teleports 1 | . . . . . . . . . . . . . . . . . . . . . . . . . . . . . . 1 . . . . Exploration Rate (%) 61 | 5 86 97 61 98 48 98 80 21 57 48 82 62 39 51 90 84 90 30 89 48 78 48 24 90 56 72 72 14 45 96 22 83 24 48 Regions Visited 34 Branch Regions 24 Pre-discovered Areas 10 | . 2 2 . . 1 . . . . . 1 . . 1 . 3 . . . . . . . . . . . . . . . . . . Known Exits Taken 20 | . . 1 1 . 1 1 . 1 . . . . 1 . . . 1 1 . . . 1 1 1 1 1 1 1 1 1 1 1 1 . Unknown Exits Taken 14 | 1 1 . . 1 . . 1 . 1 1 1 1 . 1 1 1 . . 1 1 1 . . . . . . . . . . . . . Scrap Searched 32 | . . 1 . 2 . 2 . . 5 2 . 2 . 3 3 3 2 . . . . . . 3 . . 4 . . . . . . . Spaces Dug 219 | . . 1 . 9 . . 7 12 . . . 2 26 . 3 . 2 20 . . . 4 17 19 7 . 6 13 16 . 7 19 18 11 Terrain Destroyed 601 | . 6 3 17 16 . 97 158 13 . . . 2 26 . 31 . 28 20 10 2 7 4 17 19 11 . 20 18 16 . 7 22 18 13 Melee 169 | . . . . . . . . 6 . . . 2 26 . 3 . 2 19 . . . 4 17 17 1 . 2 13 15 . 6 15 12 9 Projectile 142 | . . 3 . . . . 58 7 . . . . . . . . . 1 10 2 7 . . 2 10 . 18 5 1 . 1 7 6 4 AOE 290 | . 6 . 17 16 . 97 100 . . . . . . . 28 . 26 . . . . . . . . . . . . . . . . . Terrain Rammed . | . . . . . . . . . . . . . . . . . . . . . . . . . . . . . . . . . . . Walls Destroyed . | . . . . . . . . . . . . . . . . . . . . . . . . . . . . . . . . . . . Machines Disabled . | . . . . . . . . . . . . . . . . . . . . . . . . . . . . . . . . . . . Actions | -11 -10 -10 -9 -9 -9 -8 -8 -7 -7 -7 -7 -6 -6 -6 -6 -6 -5 -5 -5 -5 -5 -5 -4 -4 -4 -4 -3 -3 -3 -3 -2 -2 -1 -1 --------- Run | Yrd Mat Min Mat Min Exi Min Mat Fac Low Low Dat Pro Fac Low Low Zio Pro Fac Ext Cet Arc Hub Fac Upp Upp War Pro Res Arm Lab Res Tes Acc Com Total 29119 | 94 606 750 913 546 141 640 1204 1124 371 356 178 479 1577 315 965 796 1073 1128 1569 167 413 341 1009 1612 687 526 762 704 936 1164 897 1142 1126 2808 Wait 4444 | 2 8 94 69 . . . 65 30 . 24 15 29 153 . 33 4 49 204 173 33 166 15 163 662 93 . 89 97 146 872 109 148 241 658 Move 22738 | 81 532 633 686 513 141 613 955 935 370 332 143 443 1355 314 917 764 1018 865 1184 102 185 279 786 927 575 509 650 550 696 262 753 878 847 1945 Hop 65 | . . . . . . . . 2 . . . . 10 . 1 . . 2 5 . . 10 3 . . . . 4 2 . 2 13 2 9 Pick Up 199 | 4 11 3 18 3 . 3 21 14 . . . 1 6 . 2 4 . 6 27 7 5 1 6 . . 3 . 6 14 2 5 9 1 17 Fast Attach 166 | 6 7 . 7 2 . . 5 11 . . . . 6 . 1 8 . 8 5 3 13 2 13 1 . 4 . 4 4 7 6 7 4 32 Attach 89 | . 2 2 4 . . . 3 13 . . . . 2 . 3 . . 3 8 2 4 3 . . . 1 2 5 7 3 2 1 4 15 Detach 80 | . 1 . 6 . . . . 7 . . . . 1 1 2 5 . 1 6 2 9 3 . . . 3 . 7 3 2 2 2 4 13 Swap 132 | 1 5 2 15 3 . 5 17 14 1 . . . 2 . . 2 2 7 13 3 1 3 7 . . 2 . 2 4 . 1 12 1 7 Drop 223 | . 1 3 19 6 . 3 32 25 . . . . 8 . 1 7 . 9 8 7 12 3 13 1 . 4 . 1 15 4 6 13 1 21 Fire 481 | . 35 9 89 18 . 14 104 66 . . . . . . 2 . 2 1 49 8 10 . 1 2 10 . 18 5 2 1 1 10 6 18 Melee 381 | . . . . . . . . 7 . . 20 6 34 . 3 2 2 22 14 . 8 5 17 19 9 . 2 23 30 11 10 49 15 73 Ram 8 | . . 4 . . . . . . . . . . . . . . . . 4 . . . . . . . . . . . . . . . Kick . | . . . . . . . . . . . . . . . . . . . . . . . . . . . . . . . . . . . Crush 9 | . 4 . . 1 . 2 2 . . . . . . . . . . . . . . . . . . . . . . . . . . . Escape Stasis 33 | . . . . . . . . . . . . . . . . . . . 18 . . 14 . . . . 1 . . . . . . . Rewire 68 | . . . . . . . . . . . . . . . . . . . 55 . . . . . . . . . 13 . . . . . Trap . | . . . . . . . . . . . . . . . . . . . . . . . . . . . . . . . . . . . Miscellaneous 3 | . . . . . . . . . . . . . . . . . . . . . . 3 . . . . . . . . . . . . Route ------- -11/Scrapyard -10/Materials (discovered 5 exits: *Mat x3 / [*Min] / Sub) -10/Mines (discovered 3 exits: *Mat x2 / Sub) -9/Materials (discovered 4 exits: *Mat x3 / *Min) -9/Mines (discovered 3 exits: *Mat x2 / *Exi) -9/Exiles (discovered 2 exits: *Min x2) -8/Mines (discovered 2 exits: *Mat x2) -8/Materials -7/Factory (discovered 2 exits: *Fac / *Low) -7/Lower Caves -7/Lower Caves -7/Data Miner -6/Proximity Caves -6/Factory (discovered 3 exits: Fac / *Low x2) -6/Lower Caves -6/Lower Caves (discovered 2 exits: *Fac / *Zio) -6/Zion -5/Proximity Caves -5/Factory (discovered 5 exits: *Fac / *Upp x2 / *Ext x2) -5/Extension (discovered 2 exits: *Fac / *Cet) -5/Cetus -5/Archives (discovered 2 exits: *Fac / *Hub) -5/Hub_04(d) (discovered 2 exits: *Fac x2) -4/Factory (discovered 2 exits: *Upp x2) -4/Upper Caves -4/Upper Caves -4/Warlord -3/Proximity Caves -3/Research (discovered 3 exits: *Arm / Qua x2) -3/Armory (discovered 2 exits: Res / *Lab) -3/Lab -2/Research -2/Testing -1/Access -1/Command (discovered 2 exits: [*Sur x2]) 0b11 Command History --------- Turn | Location | Event 2 | -11/Scrapyard | Met Revision 17 75 | -11/Scrapyard | Discovered new exit (range 15) 141 | -11/Scrapyard | Entered Materials 307 | -10/Materials | Build established: Mutant 511 | -10/Materials | Discovered new exit (range 16) 863 | -10/Materials | Identified exit to Materials 983 | -10/Materials | Learned 2 Mines zone layouts 1027 | -10/Materials | Loaded intel: 2 recycling unit locations 1046 | -10/Materials | Discovered new exit (range 9) 1060 | -10/Materials | Loaded intel: 14 trap records 1082 | -10/Materials | Identified exit to Subcaves 1082 | -10/Materials | Learned location of 2 exits from Materials 1095 | -10/Materials | Learned location of 2 exits from Mines 1097 | -10/Materials | Entered Mines 1243 | -10/Mines | Learned location of 1 exit from Materials 1307 | -10/Mines | Learned location of Storage (-9) 1351 | -10/Mines | Found a hidden stash of uninstalled traps 1441 | -10/Mines | Assembled infested the area 1442 | -10/Mines | Assisted by bots powering up and referring to "LRC-V3" 1443 | -10/Mines | Learned location of Zion (-6) 1446 | -10/Mines | Assisted by a Guerilla fighting off Assembled 1509 | -10/Mines | Lost 4 allies 1640 | -10/Mines | Received a Rocket Launcher from a helpful Derelict 1994 | -10/Mines | Entered Materials 1994 | -9/Materials | Evolved 2 slots: Propulsion x1, Utility x1 1995 | -9/Materials | Identified exit to Mines 1996 | -9/Materials | Identified exit to Materials 2717 | -9/Materials | Build established: Scavenger-Mutant 3656 | -9/Materials | Entered Mines 3794 | -9/Mines | Build established: Mutant 3815 | -9/Mines | Found the Drone Emporium 3828 | -9/Mines | Found Prototype Device 3828 | -9/Mines | Identified Thief Drone Bay 4032 | -9/Mines | Learned Materials stockpile data 4406 | -9/Mines | A weapon hastily lodged in a ceiling crevice suddenly fell to the ground 4776 | -9/Mines | Discovered exit to Materials (range 15) 4862 | -9/Mines | Found DCF Scrap (12 items) 4865 | -9/Mines | Discovered exit to Materials (range 8) 4928 | -9/Mines | Deemed a non-threat by the Exiles lab entrance 4930 | -9/Mines | Discovered new exit (range 5) 4940 | -9/Mines | Entered Exiles 4941 | -9/Exiles | Identified exit to Mines 5000 | -9/Exiles | Met 8R-AWN 5039 | -9/Exiles | Met EX-HEX 5135 | -9/Exiles | Met EX-DEC 5245 | -9/Exiles | Discovered exit to Mines (range 15) 5279 | -9/Exiles | Entered Mines 5287 | -8/Mines | Discovered exit to Materials (range 5) 5397 | -8/Mines | Found DCF Scrap (13 items) 5444 | -8/Mines | Core integrity fell below 50% 5468 | -8/Mines | Destroyed 11 combat bots 5967 | -8/Mines | Build established: Scavenger-Mutant 6200 | -8/Mines | Discovered exit to Materials (range 5) 6796 | -8/Mines | Entered Materials 6796 | -8/Materials | Evolved 2 slots: Propulsion x1, Utility x1 7256 | -8/Materials | Build established: Mutant 7972 | -8/Materials | Discovered new exit (range 4) 8474 | -8/Materials | Build established: Scavenger-Mutant 9524 | -8/Materials | Entered Factory 9524 | -7/Factory | Evolved 2 slots: Utility x2 9919 | -7/Factory | Discovered new exit (range 10) 10235 | -7/Factory | Build established: Mutant 10420 | -7/Factory | Garrison activated, responded to threat 10640 | -7/Factory | Garrison activated, responded to threat 10729 | -7/Factory | Lost 5 parts (1p2n2u) 10822 | -7/Factory | Identified exit to Lower Caves 10846 | -7/Factory | Discovered new exit (range 7) 10933 | -7/Factory | Entered Lower Caves 10985 | -7/Lower Caves | Encountered a Warlord checkpoint 11037 | -7/Lower Caves | Discovered new exit (range 8) 11042 | -7/Lower Caves | Entered another Lower Caves area 11049 | -7/Lower Caves | Build established: Hacker-Sprinter 11051 | -7/Lower Caves | Spotted B-75 Beast 11062 | -7/Lower Caves | Learned Factory terminal intel 11070 | -7/Lower Caves | Encountered a Warlord checkpoint 11074 | -7/Lower Caves | Learned Factory stockpile data 11085 | -7/Lower Caves | Found DCF Scrap (16 items) 11143 | -7/Lower Caves | Lost 3 allies 11152 | -7/Lower Caves | Discovered new exit (range 13) 11163 | -7/Lower Caves | Entered Data Miner 11163 | -7/Data Miner | Discovered new exit (range 6) 11168 | -7/Data Miner | Met Data Miner 11174 | -7/Data Miner | Learned location of Section 7 (-3) 11174 | -7/Data Miner | Acquired the access code to Warlord's prototype stash 11179 | -7/Data Miner | Received God Mode back door access code from Data Miner 11195 | -7/Data Miner | Data Conduit disabled 11275 | -7/Data Miner | Entered Proximity Caves 11370 | -6/Proximity Caves | Spotter reported a threat 11407 | -6/Proximity Caves | Found Alien Artifact 11444 | -6/Proximity Caves | Learned location of 1 exit from Factory 11444 | -6/Proximity Caves | Discovered new exit (range 5) 11450 | -6/Proximity Caves | Entered Factory 11450 | -6/Factory | Evolved 2 slots: Utility x2 11451 | -6/Factory | Identified exit to Factory 11453 | -6/Factory | Loaded intel: 26 terminal locations 11591 | -6/Factory | Fabricated Lgt. Regenerative Plating (x1) 11674 | -6/Factory | Identified exit to Lower Caves 11942 | -6/Factory | Fabricated Cld. VTOL Module (x1) 12098 | -6/Factory | Entered Lower Caves 12100 | -6/Lower Caves | Attracted the attention of an 0b10 outpost 12136 | -6/Lower Caves | Discovered new exit (range 14) 12183 | -6/Lower Caves | Attracted the attention of an 0b10 checkpoint 12184 | -6/Lower Caves | Entered another Lower Caves area 12189 | -6/Lower Caves | Spotted B-75 Beast 12264 | -6/Lower Caves | Discovered exit to Factory (range 7) 12442 | -6/Lower Caves | Discovered new exit (range 14) 12495 | -6/Lower Caves | Entered Zion 12504 | -6/Zion | Received a visual enhancement algorithm 12504 | -6/Zion | Ran a visual enhancement algorithm 12515 | -6/Zion | Discovered new exit (range 18) 12556 | -6/Zion | Found CR-A16's Pointy Stick 12664 | -6/Zion | Met Imprinter 12715 | -6/Zion | Learned Factory terminal intel 12720 | -6/Zion | Learned location of Armory (-3) 12742 | -6/Zion | Entered Proximity Caves 12881 | -5/Proximity Caves | Attracted the attention of an 0b10 checkpoint 13101 | -5/Proximity Caves | Entered Factory 13101 | -5/Factory | Evolved 2 slots: Utility x2 13102 | -5/Factory | Identified exit to Upper Caves 13103 | -5/Factory | Loaded intel: 28 terminal locations 13165 | -5/Factory | Identified exit to Extension 13203 | -5/Factory | Repaired Cld. VTOL Module 13337 | -5/Factory | Fabricated Imp. Plasma Cutter? 13468 | -5/Factory | Fabricated Cld. VTOL Module (x1) 13536 | -5/Factory | Fabricated Cld. VTOL Module? 13588 | -5/Factory | Discovered new exit (range 12) 13649 | -5/Factory | Entered Extension 13669 | -5/Extension | Rescued A7 13704 | -5/Extension | Rescued a captive Derelict 13705 | -5/Extension | Rescued a captive Derelict 13859 | -5/Extension | Rescued a captive Derelict 13864 | -5/Extension | Rescued a captive Derelict 13865 | -5/Extension | Rescued a captive Derelict 14049 | -5/Extension | Disrupted transfer network 14341 | -5/Extension | Build established: Hacker-Mutant 14541 | -5/Extension | Spotted B-75 Beast 14549 | -5/Extension | Spotted B-75 Beast 14564 | -5/Extension | Allies destroyed B-75 Beast 14585 | -5/Extension | Allies destroyed B-75 Beast 14600 | -5/Extension | Lost 4 allies 14825 | -5/Extension | Extracted ID and sensor layout for unrecognized location from A7's data core 14854 | -5/Extension | Lost 3 allies 14945 | -5/Extension | Rescued a captive Derelict 14946 | -5/Extension | Rescued a captive Derelict 15152 | -5/Extension | Discovered new exit (range 10) 15154 | -5/Extension | Discovered new exit (range 6) 15197 | -5/Extension | Lost 4 parts (1p1u2w) 15199 | -5/Extension | Lost 3 allies 15226 | -5/Extension | Entered Cetus 15226 | -5/Cetus | Accompanied by 14 allies 15252 | -5/Cetus | Spotted Cetus Guard 15252 | -5/Cetus | Spotted Cetus Guard 15253 | -5/Cetus | Spotted Cetus Guard 15254 | -5/Cetus | Spotted Cetus Guard 15257 | -5/Cetus | Destroyed Cetus Guard 15261 | -5/Cetus | Allies destroyed Cetus Guard 15274 | -5/Cetus | Allies destroyed Cetus Guard 15278 | -5/Cetus | Destroyed Cetus Guard 15303 | -5/Cetus | Lost 3 allies 15405 | -5/Cetus | Discovered new exit (range 15) 15448 | -5/Cetus | Entered Archives 15448 | -5/Archives | Accompanied by 11 allies 15526 | -5/Archives | Lost 4 allies 15702 | -5/Archives | Discovered new exit (range 16) 15709 | -5/Archives | Discovered new exit (range 13) 15798 | -5/Archives | Entered Hub_04(d) 15798 | -5/Hub_04(d) | Accompanied by 7 allies 15799 | -5/Hub_04(d) | Discovered new exit (range 14) 15857 | -5/Hub_04(d) | Discovered new exit (range 9) 15868 | -5/Hub_04(d) | Identified exit to Factory 15885 | -5/Hub_04(d) | Network Hub disabled 15893 | -5/Hub_04(d) | Lost 3 allies 15899 | -5/Hub_04(d) | Spotted Lightning 15899 | -5/Hub_04(d) | Network Hub disabled 15908 | -5/Hub_04(d) | Spotted Lightning 15913 | -5/Hub_04(d) | Spotted Lightning 15916 | -5/Hub_04(d) | Core integrity fell below 50% 15917 | -5/Hub_04(d) | Spotted Lightning 15933 | -5/Hub_04(d) | Spotted B-75 Beast 15934 | -5/Hub_04(d) | Spotted Lightning 15935 | -5/Hub_04(d) | Spotted Lightning 15935 | -5/Hub_04(d) | Spotted Lightning 15936 | -5/Hub_04(d) | Spotted Lightning 15949 | -5/Hub_04(d) | Entered Factory 15949 | -4/Factory | Evolved 2 slots: Propulsion x2 15970 | -4/Factory | Lost 6 parts (1p4n1w) 16054 | -4/Factory | Fabricated Cld. VTOL Module (x1) 16095 | -4/Factory | Build established: Wizard-Scout 16184 | -4/Factory | Fabricated Mic. Antimatter Reactor (x2) 16230 | -4/Factory | Identified exit to Upper Caves 16469 | -4/Factory | Repaired Phasing Sabre 16543 | -4/Factory | Entered Upper Caves 17285 | -4/Upper Caves | Encountered a Warlord checkpoint 17373 | -4/Upper Caves | Learned Research emergency access door positions 17505 | -4/Upper Caves | Discovered new exit (range 7) 17546 | -4/Upper Caves | Identified exit to Upper Caves 17546 | -4/Upper Caves | Entered another Upper Caves area 17795 | -4/Upper Caves | Ambushed by research squad 17857 | -4/Upper Caves | Discovered new exit (range 11) 17860 | -4/Upper Caves | Identified exit to Warlord 17860 | -4/Upper Caves | Entered Warlord 17899 | -4/Warlord | Opened Warlord's prototype stash 17903 | -4/Warlord | Found Prototype Processor 17903 | -4/Warlord | Identified Exp. Targeting Computer 17907 | -4/Warlord | Found Prototype Hackware 17907 | -4/Warlord | Identified System Mapper 17909 | -4/Warlord | Found Prototype Processor 17909 | -4/Warlord | Identified Exp. Core Analyzer 17962 | -4/Warlord | Visited the Vortex Lab 17969 | -4/Warlord | Warlord's base attacked by MAIN.C 18010 | -4/Warlord | Met Warlord 18026 | -4/Warlord | Opened side exit 18033 | -4/Warlord | Discovered new exit (range 9) 18034 | -4/Warlord | Identified exit to Proximity Caves 18035 | -4/Warlord | Entered Proximity Caves 18164 | -3/Proximity Caves | Attracted the attention of an 0b10 checkpoint 18265 | -3/Proximity Caves | Spotted B-86 Titan 18366 | -3/Proximity Caves | Discovered new exit (range 15) 18369 | -3/Proximity Caves | Identified exit to Research 18369 | -3/Proximity Caves | Entered Research 18369 | -3/Research | Evolved 2 slots: Power x1, Utility x1 18380 | -3/Research | Identified exit to Armory 18380 | -3/Research | Identified exit to Quarantine 18664 | -3/Research | Fabricated Impulse Thruster Array? 18723 | -3/Research | Entered Armory 18774 | -3/Armory | Build established: Wizard-Sprinter 18927 | -3/Armory | Found Prototype Launcher 18928 | -3/Armory | Identified Adv. Micro-nuke Launcher 18941 | -3/Armory | Energy Cycler disabled 18969 | -3/Armory | Found Exp. Melee Analysis Suite 18970 | -3/Armory | Found Exp. Melee Analysis Suite 19036 | -3/Armory | Fabricated Cld. VTOL Module (x1) 19112 | -3/Armory | Spotted Armor Guard 19112 | -3/Armory | Spotted Armor Guard 19166 | -3/Armory | Discovered new exit (range 5) 19183 | -3/Armory | Discovered new exit (range 10) 19189 | -3/Armory | Lost 5 parts (1n4u) 19207 | -3/Armory | Repaired Cld. VTOL Module 19228 | -3/Armory | Identified exit to Lab 19231 | -3/Armory | Entered Lab 19231 | -3/Lab | Accompanied by 1 ally 19231 | -3/Lab | Discovered new exit (range 9) 19234 | -3/Lab | Identified exit to Research 19235 | -3/Lab | Hidden lab's door opened automatically 19235 | -3/Lab | Sensor layout match revealed 19236 | -3/Lab | Gained access to the hidden lab's interior 19496 | -3/Lab | Build established: Hacker-Sprinter 19836 | -3/Lab | Found Alien Artifact 19841 | -3/Lab | Found Alien Artifact 19841 | -3/Lab | Identified Transdimensional Reconstructor 19841 | -3/Lab | Warped through subspace 19920 | -3/Lab | Found Prototype Energy Cannon 19920 | -3/Lab | Identified Warp Cannon 19929 | -3/Lab | Found Prototype Energy Gun 19929 | -3/Lab | Identified Hyp. EM Gauss Rifle 19934 | -3/Lab | Found Prototype Device 19934 | -3/Lab | Identified AEGIS Remote Shield 19939 | -3/Lab | Found Prototype Hackware 19939 | -3/Lab | Identified Deep Network Scanner 20190 | -3/Lab | Found Alien Artifact 20190 | -3/Lab | Identified Core Expander 20190 | -3/Lab | Installed Core Expander, added new Power slot 20197 | -3/Lab | Found Alien Artifact 20197 | -3/Lab | Identified Integrated Reactor 20197 | -3/Lab | Installed Integrated Reactor, increased core energy generation (+10) 20233 | -3/Lab | Entered Research 20233 | -2/Research | Warlord forces began assault on 0b10 20233 | -2/Research | Evolved 2 slots: Propulsion x1, Utility x1 20243 | -2/Research | Met up with Warlord 20343 | -2/Research | Research machine network offline 20476 | -2/Research | Found Exp. Core Analyzer 20547 | -2/Research | Borebot progress halted 20622 | -2/Research | Discovered new exit (range 16) 20627 | -2/Research | Identified exit to Testing 20628 | -2/Research | Entered Testing 20648 | -2/Testing | Found Prototype Hackware 20648 | -2/Testing | Identified Ghost Barrier 20702 | -2/Testing | Lost 3 allies 20713 | -2/Testing | Found Prototype Device 20718 | -2/Testing | Identified Adv. EM Shield 20727 | -2/Testing | Identified exit to Access 20727 | -2/Testing | Central database locked down 20776 | -2/Testing | Build established: Wizard-Sprinter 20820 | -2/Testing | Fabricated Femtoactuators (x1) 20857 | -2/Testing | Spotted Striker 21050 | -2/Testing | Destroyed PD-HYBEJSVYQP 21079 | -2/Testing | Spotted PG-SD0WDGT9A4 21269 | -2/Testing | Found Lgt. Regenerative Plating 21273 | -2/Testing | Entered Access 21273 | -1/Access | Evolved 2 slots: Propulsion x1, Weapon x1 21291 | -1/Access | Garrison activated, responded to threat 21296 | -1/Access | Identified exit to Command 21382 | -1/Access | Fabricated Nanosword (x1) 21754 | -1/Access | Repaired Imp. Utility Shielding 21790 | -1/Access | Repaired Cld. VTOL Module 21837 | -1/Access | Entered Command 21970 | -1/Command | Repaired Impulse Thruster Array 21975 | -1/Command | Spotted Alpha 7 22000 | -1/Command | Disengaged cave seal 22003 | -1/Command | Welcomed Warlord to Command 22007 | -1/Command | Repaired Cld. VTOL Module? 22115 | -1/Command | Lost 7 allies 22164 | -1/Command | Lost 5 allies 22241 | -1/Command | Repaired Impulse Thruster Array 22277 | -1/Command | Repaired Mic. Antimatter Reactor 22410 | -1/Command | Spotted M Guard 22410 | -1/Command | Spotted M Guard 22410 | -1/Command | Spotted Combat Programmer 22410 | -1/Command | Spotted Combat Programmer 22429 | -1/Command | Combat Programmer assimilated allied DN-3HL(d) 22438 | -1/Command | Destroyed Combat Programmer 22457 | -1/Command | Destroyed M Guard 22461 | -1/Command | Destroyed M Guard 22461 | -1/Command | All MAIN.C guards destroyed 22467 | -1/Command | Lost 5 parts (1n4u) 22479 | -1/Command | Warlord commented on Warlord statues 22521 | -1/Command | Lost 8 allies 22849 | -1/Command | Disengaged cave seal 22849 | -1/Command | Derelicts emerged from the dark tunnel 22856 | -1/Command | Build established: Hacker-Gladiator 23242 | -1/Command | Found AEGIS Remote Shield 23333 | -1/Command | Met MAIN.C 23354 | -1/Command | 0b10 Conduit disabled 23372 | -1/Command | MAIN.C activated Command garrisons 23412 | -1/Command | Lost 5 allies 23413 | -1/Command | Destroyed MAIN.C 23415 | -1/Command | Discovered new exit (range 31) 23415 | -1/Command | Discovered new exit (range 105) 23415 | -1/Command | Extracted map data and part IDs from MAIN.C's data core 23442 | -1/Command | Lost 5 parts (1p4u) 23474 | -1/Command | Spotted B-99 Colossus 23493 | *** | Establishing 0b11! Last Messages --------------- 23404_ Knocked back. 23404_ MAIN.C suffers critical hit (Burn). 23405_ Acquired Cmb. Linear Gravjet. 23406_ Molecular Scythe follow-up attack on MAIN.C. 23411_ Exp. Power Amplifier destroyed. 23411_ Imp. Medium Armor Plating destroyed. 23412_ Acquired 2 matter. 23412_ MAIN.C suffers critical hit (Smash). 23413_ MAIN.C: "I hope you know you're still going to DIE HERE WITH ME!" 23413_ MAIN.C destroyed. 23415_ EXIT=FOUND 23415_ Acquired data core, extracted map data and part IDs. 23418_ Acquired 3 matter. 23420_ Acquired Imp. Melee Analysis Suite. 23422_ Acquired 10 matter. 23425_ System corrupted: Matter fused (-10). 23425_ Acquired 10 matter. 23460_ System corrupted: Heat flow error (+213). 23460_ Destroyed Antigrav System. 23475_ Destroyed Gravmag System. Map ----- +----------------------------------------------------+ | " * #????????? | | ### ###### ## ######## ###########""##????????? | | # #????##^### #?######/##########""???????????? | | # #######+###+### # "" #???????????? | | # ## # # """" #???????????? | | # ## # # """" #???????????? | | # ## + "" # "" #???????????? | | # ## # """" # #???????????? | | # ## # """" + #???????????? | | ### ## "" # "" # #???????????? | | ## ! # """" # ! # #???????????? | | # """" # # #???????????? | | + "" #####+######""+####???????????? | | ## # #?# ####" #?????????????? | | ?## ## #?# " "T #?????????????? | | ### ## #?#! "" #?????????????? | | # ########+######?# ####" #?????????????? | | # # "" #?????## ##??##" ###?????????????? | | # # """" #??????# #????#" #???????????????? | | # # """" #??????# #????#" #???????????????? | | # # "" #??????# #???##"+######??????????? | | # + #??????# #???# #??????????? | | # # #??????# #???# ] #??????????? | | # # #??????# ###?# "" #??????????? | | # # #??????# #?# """" #??????????? | | # ####+######??????# @ #?# """" #??????????? | | + #??# #??######???# #?# "" #??????????? | | ### #??# #??# #???######?# #??????????? | | ### #??# #??# #??????????# #??????????? | | ####+#### = #??????????# #?????###### | | # # ############+###"+###?????#????? | | ### + ! # # #??????#?#### | | #?# # # + #??????#?#""" | | #?# ######### # #??????#?#"" | | #?# #""""""###+#####+########+### #??????#?#""" | | #?# + """#?# #??# # ######?#?#""" | | #?# + """#?# #??# # / #?#?#" | | #?# + """#?# #??# # # #?#?#"" | | #?# #""""""#?# "" #??# + # #?#?#"" | | #?###########?# """" #??# # # #?#?# " | | ######????????# """" #??# # # #?#?# " | | #!! #???###### "" #??####+### # #?#?# " | | #!! ##??# ^^+ #?????# #?# # #?#?#""" | | #! ! #??# #### #######+### + #?#?#"" | | # ##??# #??##+####+## ## # #?#?# | | + #####+##### #??# ## ## ######?#?# | | # ## # #??# ## "" # ######### | | # ## # #??# ## """" # | | + ## # #??# ## """" + | | # ## ""# #??# ## "" # | +----------------------------------------------------+ Best States ------------- Heat Dissipation 88 Energy Generation 93 Energy Capacity 670 Matter Stores 300 Matter Capacity 300 Sight Range 20 Robot Scan Range 18 Terrain Scan Density 10 Jamming Range 16 Cloak Strength 3 Power Amplification 40 Additional Mass Support 16 Armor Coverage 600 Propulsion Shielding 90 Utility Shielding 90 Melee Speed Boost 50 Phase Shifting 15 Evasion (%) 79 Melee Accuracy 36 Core Analysis 8 Recoil Reduction 4 Offensive Hacking 61 Defensive Hacking 30 Item Schematics ----------------- Combat Drone Bay | -7/Data Miner | Free Lgt. Regenerative Plating | -7/Data Miner | Free Cld. Aerolev Unit | -7/Data Miner | Free Gravity Neutralizer | -7/Data Miner | Free Force Rifle | -7/Data Miner | Free Nuclear Pulse Array | -7/Data Miner | Free Imp. Weapon Cycler | -7/Data Miner | Free Lance | -7/Data Miner | Free Cld. VTOL Module | -6/Factory | Hacked Imp. Hacking Suite | -6/Zion | Archive Lrn. Tractor Beam | -6/Zion | Archive Adv. Melee Analysis Suite | -6/Zion | Archive Neutrino Core | -6/Zion | Archive Enh. Optical Array | -6/Zion | Archive Adv. Heat Sink | -6/Zion | Archive Imp. Remote Force Field | -6/Zion | Archive HERF Cannon | -6/Zion | Archive Hyp. Gauss Rifle | -6/Zion | Archive Variable Charge Gun | -6/Zion | Archive EM Shield | -6/Zion | Archive Imp. Component Analysis Suite | -6/Zion | Archive Hyp. Gauss Cannon | -6/Zion | Archive Phase Cannon | -6/Zion | Archive Exp. Propulsion Shielding | -5/Extension | Hacked Nanoactuators | -4/Factory | Hacked Nanosword | -4/Factory | Hacked Exp. Signal Interpreter | -3/Research | Hacked Impulse Thruster Array | -3/Research | Hacked Mic. Antimatter Reactor | -3/Research | Hacked Femtoactuators | -2/Testing | Hacked Robot Schematics ------------------ P-60 Hacker | -7/Data Miner | Free M-22 Extractor | -7/Data Miner | Free G-50 Soldier | -7/Data Miner | Free S-27 Virus | -7/Data Miner | Free W-25 Informer | -7/Data Miner | Free A-15 Conveyor | -7/Data Miner | Free H-88 Terminator | -6/Zion | Archive L-41 Fighter | -6/Zion | Archive R-06 Scavenger | -6/Zion | Archive Fabricated ------------ Lgt. Regenerative Plating | x1 | -6/Factory Cld. VTOL Module | x1 | -6/Factory Imp. Plasma Cutter | x2 | -5/Factory | Preloaded Cld. VTOL Module | x1 | -5/Factory Cld. VTOL Module | x1 | -5/Factory Cld. VTOL Module | x1 | -4/Factory Mic. Antimatter Reactor | x2 | -4/Factory | Preloaded Impulse Thruster Array | x1 | -3/Research Cld. VTOL Module | x1 | -3/Armory Femtoactuators | x1 | -2/Testing Nanosword | x1 | -1/Access Repaired ---------- Cld. VTOL Module | 63% | -5/Factory Phasing Sabre | 35% | -4/Factory Cld. VTOL Module | 28% | -3/Armory Imp. Utility Shielding | 29% | -1/Access Cld. VTOL Module | 48% | -1/Access Impulse Thruster Array | 14% | -1/Command Cld. VTOL Module | 13% | -1/Command Impulse Thruster Array | 28% | -1/Command Mic. Antimatter Reactor | 10% | -1/Command Alien Tech Used ----------------- Transdimensional Reconstructor Core Expander Integrated Reactor Achievements -------------- Production Line Watch This! Challenges ------------ None Game ------ Seed SmallDeuteriumMinigun Manual? 0 Play Time 05:11:20 Cumulative 170.3 hours Start 2025.08.09 @ 17:25:08 End 2025.08.12 @ 09:55:44 Sessions 4 Manual Loads 0 Difficulty Rogue Special Mode None Game No. 80 Rogue 80 Adventurer 0 Explorer 0 Win Type 1 Total 16 Types 4/2/4/1/1/0/0/1/1/2 Lore% 70 Gallery% 68 Achievement% 66 Wizard Run 0 Options --------- Layout 0 ASCII 0 Keyboard 1 Movement Vi Keybinds 0 Fullscreen 2 Font 18/SmallcapsGlow Map View 76x50 Zoom Use 0% Tactical HUD 1 Map Filters NONE Filters NONE Steam 1 RUN: cd6bf11b-9ab2-4bf8-8ccc-f4e8b9fc1f8e